Workbook

Sheet 001suel (hidden)
C2: POA 2016 TRANSFERENCIA DE RECURSOS | G2: Procedimiento
G3: Código : CPR-P01-F04
G4: Revisión : | H4: Página 1de 1
A7: Fecha: | C7: 2016-01-22 | F7: No. de Transferencia: | G7: UTC/SV/001/2016
A9: Nombre de la Unidad Responsable: | F9: SECRETARIA DE VINCULACION
A11: Monto Total Solicitado: | F11: =H44 -> 739
A13: DESCRIPCIÓN DE LA APLICACIÓN SOLICITADA.
A15: Origen de los recursos:
A16: REF. | B16: PROCESO | C16: PARTIDA | D16: MES | E16: FINANCIAMIENTO | F16: NOMBRE DE LA PARTIDA PRESUPUESTAL | H16: IMPORTE
A17: 1 | B17: 1902E0424121 | C17: 2111 | D17: ENERO | E17: FEDERAL | F17: PAPELERIA Y CONSUMIBLES DE OFICINA | H17: 739
F28: SUMA TOTAL A TRANSFERIR | H28: =SUM(H17:H27) -> 739
A30: Destino de recursos:
A31: REF. | B31: PROCESO | C31: PARTIDA | D31: MES | E31: RECURSO | F31: NOMBRE DE LA PARTIDA PRESUPUESTAL | H31: IMPORTE
A32: 1 | B32: 1902E0424121 | C32: 2214 | D32: ENERO | E32: FEDERAL | F32: ALIMENTACION DE PERSONAS POR EL DESARROLLO DE OTROS PROGRAMAS INSTITUCIONALES | H32: 739
F44: SUMA TOTAL A TRANSFERIR | H44: =SUM(H32:H43) -> 739
A46: JUSTIFICACIÓN:
A47: SE REQUIERE SOLVENTAR LA SOLICITUD UTC/DV/001/2016 PARA EL PAGO DE LA CENA CON DIRECTIVOS DE LA UNIVERSIDAD NBC. BESSIERES DE PARIS.
A49: REQUISITOS: La información solicitada en este formato deberá presentarse en forma completa atendiendo a lo requerido en cada uno de los recuadros señalados. Se deben incluir los anexos.

Sheet 001 (hidden)
C2: POA 2016 TRANSFERENCIA DE RECURSOS | G2: Procedimiento
G3: Código : CPR-P01-F04
G4: Revisión : | H4: Página 1de 1
A7: Fecha: | C7: 2016-01-22 | F7: No. de Transferencia: | G7: UTC/SV/DEC/001/2016
A9: Nombre de la Unidad Responsable: | F9: SECRETARÍA DE VINCULACIÓN
A11: Monto Total Solicitado: | F11: 1063.72
A13: DESCRIPCIÓN DE LA APLICACIÓN SOLICITADA.
A15: Origen de los recursos:
A16: REF. | B16: PROCESO | C16: PARTIDA | D16: MES | E16: FINANCIAMIENTO | F16: NOMBRE DE LA PARTIDA PRESUPUESTAL | H16: IMPORTE
A17: 1 | B17: 1902E0425219 | C17: 3751 | D17: ENE | E17: FEDERAL | F17: VIÁTICOS EN EL PAÍS | H17: 1063.72
F28: SUMA TOTAL A TRANSFERIR | H28: =SUM(H17:H27) -> 1063.72
A30: Destino de recursos:
A31: REF. | B31: PROCESO | C31: PARTIDA | D31: MES | E31: RECURSO | F31: NOMBRE DE LA PARTIDA PRESUPUESTAL | H31: IMPORTE
A32: 1 | B32: 1902E0425219 | C32: 3581 | D32: ENE | E32: FEDERAL | F32: SERVICIO DE LIMPIEZA Y MANEJO DE DESECHOS | H32: 1063.72
F44: SUMA TOTAL A TRANSFERIR | H44: =SUM(H32:H43) -> 1063.72
A46: JUSTIFICACIÓN: PARA DAR SUFICIENCIA A LA SOLICITUD DV/DEC/002/2016.
A49: REQUISITOS: La información solicitada en este formato deberá presentarse en forma completa atendiendo a lo requerido en cada uno de los recuadros señalados. Se deben incluir los anexos.

Sheet 002 GLA (hidden)
C2: POA 2016 TRANSFERENCIA DE RECURSOS | G2: Procedimiento
G3: Código : CPR-P01-F04
G4: Revisión : | H4: Página 1de 1
A7: Fecha: | C7: 2016-01-28 | F7: No. de Transferencia: | G7: UTC/SV/DEC/002/2016
A9: Nombre de la Unidad Responsable: | F9: SECRETARÍA DE VINCULACIÓN
A11: Monto Total Solicitado: | F11: 809.16
A13: DESCRIPCIÓN DE LA APLICACIÓN SOLICITADA.
A15: Origen de los recursos:
A16: REF. | B16: PROCESO | C16: PARTIDA | D16: MES | E16: FINANCIAMIENTO | F16: NOMBRE DE LA PARTIDA PRESUPUESTAL | H16: IMPORTE
A17: 1 | B17: 1902E0425219 | C17: 3711 | D17: ENE | E17: FEDERAL | F17: PASAJES AEREOS NACIONALES | H17: 809.16
F28: SUMA TOTAL A TRANSFERIR | H28: =SUM(H17:H27) -> 809.16
A30: Destino de recursos:
A31: REF. | B31: PROCESO | C31: PARTIDA | D31: MES | E31: RECURSO | F31: NOMBRE DE LA PARTIDA PRESUPUESTAL | H31: IMPORTE
A32: 1 | B32: 1902E0425219 | C32: 3181 | D32: ENE | E32: FEDERAL | F32: SERVICIOS POSTALES Y TELEGRÁFICOS | H32: 809.16
F44: SUMA TOTAL A TRANSFERIR | H44: =SUM(H32:H43) -> 809.16
A46: JUSTIFICACIÓN: PARA DAR SUFICIENCIA A LA SOLICITUD DV/DEC/003/2016.
A49: REQUISITOS: La información solicitada en este formato deberá presentarse en forma completa atendiendo a lo requerido en cada uno de los recuadros señalados. Se deben incluir los anexos.

Sheet 003 (hidden)
C2: POA 2016 TRANSFERENCIA DE RECURSOS | G2: Procedimiento
G3: Código : CPR-P01-F04
G4: Revisión : | H4: Página 1de 1
A7: Fecha: | C7: 2016-02-05 | F7: No. de Transferencia: | G7: UTC/SV/DEC/003/2016
A9: Nombre de la Unidad Responsable: | F9: SECRETARÍA DE VINCULACIÓN
A11: Monto Total Solicitado: | F11: 12158
A13: DESCRIPCIÓN DE LA APLICACIÓN SOLICITADA.
A15: Origen de los recursos:
A16: REF. | B16: PROCESO | C16: PARTIDA | D16: MES | E16: FINANCIAMIENTO | F16: NOMBRE DE LA PARTIDA PRESUPUESTAL | H16: IMPORTE
A17: 1 | B17: PP-VIN-INTERN-16 | C17: 3831 | D17: FEB | E17: PRODUCTIVO | F17: CONGRESOS Y CONVENCIONES | H17: 12158
F28: SUMA TOTAL A TRANSFERIR | H28: =SUM(H17:H27) -> 12158
A30: Destino de recursos:
A31: REF. | B31: PROCESO | C31: PARTIDA | D31: MES | E31: RECURSO | F31: NOMBRE DE LA PARTIDA PRESUPUESTAL | H31: IMPORTE
A32: 1 | B32: PP-VIN-INTERN-16 | C32: 3821 | D32: FEB | E32: PRODUCTIVO | F32: GASTOS DE ORDEN SOCIAL Y CULTURAL | H32: 12158
F44: SUMA TOTAL A TRANSFERIR | H44: =SUM(H32:H43) -> 12158
A46: JUSTIFICACIÓN: PARA DAR SUFICIENCIA A LA SOLICITUD DV/DEC/022/2016.(COMPRA DE ENTRADAS A XOXIMILCO ALUMNOS DE INTERCAMBIO)
A49: REQUISITOS: La información solicitada en este formato deberá presentarse en forma completa atendiendo a lo requerido en cada uno de los recuadros señalados. Se deben incluir los anexos.

Sheet 004 (hidden)
C2: POA 2016 TRANSFERENCIA DE RECURSOS | G2: Procedimiento
G3: Código : CPR-P01-F04
G4: Revisión : | H4: Página 1de 1
A7: Fecha: | C7: 2016-02-08 | F7: No. de Transferencia: | G7: UTC/SV/DEC/004/2016
A9: Nombre de la Unidad Responsable: | F9: SECRETARÍA DE VINCULACIÓN
A11: Monto Total Solicitado: | F11: 20000
A13: DESCRIPCIÓN DE LA APLICACIÓN SOLICITADA.
A15: Origen de los recursos:
A16: REF. | B16: PROCESO | C16: PARTIDA | D16: MES | E16: FINANCIAMIENTO | F16: NOMBRE DE LA PARTIDA PRESUPUESTAL | H16: IMPORTE
A17: 1 | B17: IP-VIN-MOV-INT-16 | C17: 3821 | D17: AGO | E17: PROPIOS | F17: GASTOS DE ÓRDEN SOCIAL Y CULTURAL | H17: 20000
F28: SUMA TOTAL A TRANSFERIR | H28: =SUM(H17:H27) -> 20000
A30: Destino de recursos:
A31: REF. | B31: PROCESO | C31: PARTIDA | D31: MES | E31: RECURSO | F31: NOMBRE DE LA PARTIDA PRESUPUESTAL | H31: IMPORTE
A32: 1 | B32: IP-VIN-MOV-INT-16 | C32: 3712 | D32: FEB. | E32: PROPIOS | F32: PASAJES AEREOS INTERNACIONALES | H32: 2000
A33: 2 | B33: IP-VIN-MOV-INT-16 | C33: 3921 | D33: FEB. | E33: PROPIOS | F33: IMPUESTOS Y DERECHOS | H33: 18000
F44: SUMA TOTAL A TRANSFERIR | H44: =SUM(H32:H43) -> 20000
A46: JUSTIFICACIÓN: PARA DAR SUFICIENCIA A LA SOLICITUD DV/DEC/023/033/2016.(COMPRA DE BOLETO AEREO INTERNACIONAL AL PROF. LEONEL Y PAGO MEMBRESIA UDUAL)
A49: REQUISITOS: La información solicitada en este formato deberá presentarse en forma completa atendiendo a lo requerido en cada uno de los recuadros señalados. Se deben incluir los anexos.

Sheet 005 (hidden)
C2: POA 2016 TRANSFERENCIA DE RECURSOS | G2: Procedimiento
G3: Código : CPR-P01-F04
G4: Revisión : | H4: Página 1de 1
A7: Fecha: | C7: 2016-02-09 | F7: No. de Transferencia: | G7: UTC/SV/DEC/005/2016
A9: Nombre de la Unidad Responsable: | F9: SECRETARÍA DE VINCULACIÓN
A11: Monto Total Solicitado: | F11: 350
A13: DESCRIPCIÓN DE LA APLICACIÓN SOLICITADA.
A15: Origen de los recursos:
A16: REF. | B16: PROCESO | C16: PARTIDA | D16: MES | E16: FINANCIAMIENTO | F16: NOMBRE DE LA PARTIDA PRESUPUESTAL | H16: IMPORTE
A17: 1 | B17: 1902E0425219 | C17: 2111 | D17: FEB | E17: FEDERAL | F17: PAPELERÍA Y CONSUMIBLES DE OFICINA | H17: 50
A18: 2 | B18: 1902E0425219 | C18: 2111 | D18: MAR | E18: FEDERAL | F18: PAPELERÍA Y CONSUMIBLES DE OFICINA | H18: 100
A19: 3 | B19: 1902E0425219 | C19: 2111 | D19: ABRIL | E19: FEDERAL | F19: PAPELERÍA Y CONSUMIBLES DE OFICINA | H19: 100
A20: 4 | B20: 1902E0425219 | C20: 2111 | D20: MAYO | E20: FEDERAL | F20: PAPELERÍA Y CONSUMIBLES DE OFICINA | H20: 100
F28: SUMA TOTAL A TRANSFERIR | H28: =SUM(H17:H27) -> 350
A30: Destino de recursos:
A31: REF. | B31: PROCESO | C31: PARTIDA | D31: MES | E31: RECURSO | F31: NOMBRE DE LA PARTIDA PRESUPUESTAL | H31: IMPORTE
A32: 1 | B32: 1902E0425219 | C32: 2112 | D32: FEB | E32: FEDERAL | F32: ÚTILES ARTÍCULOS Y HERRAMIENTAS MENORES DE OFICINA | H32: 50
A33: 2 | B33: 1902E0425219 | C33: 2112 | D33: FEB | E33: FEDERAL | F33: ÚTILES ARTÍCULOS Y HERRAMIENTAS MENORES DE OFICINA | H33: 100
A34: 3 | B34: 1902E0425219 | C34: 2112 | D34: FEB | E34: FEDERAL | F34: ÚTILES ARTÍCULOS Y HERRAMIENTAS MENORES DE OFICINA | H34: 100
A35: 4 | B35: 1902E0425219 | C35: 2112 | D35: FEB | E35: FEDERAL | F35: ÚTILES ARTÍCULOS Y HERRAMIENTAS MENORES DE OFICINA | H35: 100
F44: SUMA TOTAL A TRANSFERIR | H44: =SUM(H32:H43) -> 350
A46: JUSTIFICACIÓN: PARA DAR SUFICIENCIA A LA SOLICITUD DV/DEC/035/2016.(COMPRA DE SELLO DE GOMA)
A49: REQUISITOS: La información solicitada en este formato deberá presentarse en forma completa atendiendo a lo requerido en cada uno de los recuadros señalados. Se deben incluir los anexos.

Sheet 006 (hidden)
C2: POA 2016 TRANSFERENCIA DE RECURSOS | G2: Procedimiento
G3: Código : CPR-P01-F04
G4: Revisión : | H4: Página 1de 1
A7: Fecha: | C7: 2016-02-15 | F7: No. de Transferencia: | G7: UTC/SV/DEC/005/2016
A9: Nombre de la Unidad Responsable: | F9: SECRETARÍA DE VINCULACIÓN
A11: Monto Total Solicitado: | F11: 25288
A13: DESCRIPCIÓN DE LA APLICACIÓN SOLICITADA.
A15: Origen de los recursos:
A16: REF. | B16: PROCESO | C16: PARTIDA | D16: MES | E16: FINANCIAMIENTO | F16: NOMBRE DE LA PARTIDA PRESUPUESTAL | H16: IMPORTE
A17: 1 | B17: PP-VIN-INTERN-2016 | C17: 3622 | D17: ENE | E17: PRODUCTIVO | F17: ARTÍCULOS PROMOCIONALES | H17: 20000
A18: 2 | B18: PP-VIN-INTERN-2016 | C18: 3341 | D18: MAYO | E18: PRODUCTIVO | F18: SERVICIOS DE CAPACITACIÓN | H18: 5288
F28: SUMA TOTAL A TRANSFERIR | H28: =SUM(H17:H27) -> 25288
A30: Destino de recursos:
A31: REF. | B31: PROCESO | C31: PARTIDA | D31: MES | E31: RECURSO | F31: NOMBRE DE LA PARTIDA PRESUPUESTAL | H31: IMPORTE
A32: 1 | B32: PP-VIN-INTERN-2016 | C32: 3611 | D32: FEB. | E32: PRODUCTIVO | F32: DIFUSIÓN POR RADIO, TV Y OTROS MEDIOS DE MENSAJES S/PROG. Y ACTIVIDADES GUBERNAMENTALES | H32: 20000
A33: 2 | B33: PP-VIN-INTERN-2016 | C33: 3611 | D33: FEB. | E33: PRODUCTIVO | F33: DIFUSIÓN POR RADIO, TV Y OTROS MEDIOS DE MENSAJES S/PROG. Y ACTIVIDADES GUBERNAMENTALES | H33: 5288
F40: SUMA TOTAL A TRANSFERIR | H40: =SUM(H32:H39) -> 25288
A42: JUSTIFICACIÓN: PARA DAR SUFICIENCIA A LA SOLICITUD DV/DEC/037/2016.(VIDEO PROMOCIONAL PARA ALUMNOS INTERNACIONALES)
A45: REQUISITOS: La información solicitada en este formato deberá presentarse en forma completa atendiendo a lo requerido en cada uno de los recuadros señalados. Se deben incluir los anexos.

Sheet 007 GLA (hidden)
C2: POA 2016 TRANSFERENCIA DE RECURSOS | G2: Procedimiento
G3: Código : CPR-P01-F04
G4: Revisión : | H4: Página 1de 1
A7: Fecha: | C7: 2016-02-15 | F7: No. de Transferencia: | G7: UTC/SV/DEC/007/2016
A9: Nombre de la Unidad Responsable: | F9: SECRETARÍA DE VINCULACIÓN
A11: Monto Total Solicitado: | F11: 800
A13: DESCRIPCIÓN DE LA APLICACIÓN SOLICITADA.
A15: Origen de los recursos:
A16: REF. | B16: PROCESO | C16: PARTIDA | D16: MES | E16: FINANCIAMIENTO | F16: NOMBRE DE LA PARTIDA PRESUPUESTAL | H16: IMPORTE
A17: 1 | B17: PP-VIN-EDU-CONT-2016 | C17: 2111 | D17: ENE | E17: PRODUCTIVO | F17: PAPELERÍA Y CONSUMIBLES DE OFICINA | H17: 800
F28: SUMA TOTAL A TRANSFERIR | H28: =SUM(H17:H27) -> 800
A30: Destino de recursos:
A31: REF. | B31: PROCESO | C31: PARTIDA | D31: MES | E31: RECURSO | F31: NOMBRE DE LA PARTIDA PRESUPUESTAL | H31: IMPORTE
A32: 1 | B32: PP-VIN-EDU-CONT-2016 | C32: 2941 | D32: FEB. | E32: PRODUCTIVO | F32: REFACCIONES Y ACCESORIOS MENORES DE EQP DE CÓMPUTO | H32: 800
F40: SUMA TOTAL A TRANSFERIR | H40: =SUM(H32:H39) -> 800
A42: JUSTIFICACIÓN: PARA DAR SUFICIENCIA A LA SOLICITUD DV/DEC/039/2016.(COMPRA DE CABLES DE AUDIO Y VIDEO PARA LA SALA D-127 SALONES DE EDUCACIÓN CONTINUA)
A45: REQUISITOS: La información solicitada en este formato deberá presentarse en forma completa atendiendo a lo requerido en cada uno de los recuadros señalados. Se deben incluir los anexos.

Sheet 008 (hidden)
C2: POA 2016 TRANSFERENCIA DE RECURSOS | G2: Procedimiento
G3: Código : CPR-P01-F04
G4: Revisión : | H4: Página 1de 1
A7: Fecha: | C7: 2016-02-19 | F7: No. de Transferencia: | G7: UTC/SV/DEC/008/2016
A9: Nombre de la Unidad Responsable: | F9: SECRETARÍA DE VINCULACIÓN
A11: Monto Total Solicitado: | F11: 436
A13: DESCRIPCIÓN DE LA APLICACIÓN SOLICITADA.
A15: Origen de los recursos:
A16: REF. | B16: PROCESO | C16: PARTIDA | D16: MES | E16: FINANCIAMIENTO | F16: NOMBRE DE LA PARTIDA PRESUPUESTAL | H16: IMPORTE
A17: 1 | B17: IP-VIN-MEXPROTEC-16 | C17: 3711 | D17: ENE. | E17: PROPIOS | F17: BOLETO AEREO NACIONAL | H17: 436
F28: SUMA TOTAL A TRANSFERIR | H28: =SUM(H17:H27) -> 436
A30: Destino de recursos:
A31: REF. | B31: PROCESO | C31: PARTIDA | D31: MES | E31: RECURSO | F31: NOMBRE DE LA PARTIDA PRESUPUESTAL | H31: IMPORTE
A32: 1 | B32: IP-VIN-MEXPROTEC-16 | C32: 3721 | D32: FEB. | E32: PROPIOS | F32: PASAJE TERRESTRE NACIONAL | H32: 436
F40: SUMA TOTAL A TRANSFERIR | H40: =SUM(H32:H39) -> 436
A42: JUSTIFICACIÓN: PARA DAR SUFICIENCIA A LA SOLICITUD DV/DEC/042/2016.(REEMBOLSO LIC. MARIANA /BOLETOS AUTOBUS MERIDA,GPO.MEXPROTEC)
A45: REQUISITOS: La información solicitada en este formato deberá presentarse en forma completa atendiendo a lo requerido en cada uno de los recuadros señalados. Se deben incluir los anexos.

Sheet 009 (hidden)
C2: POA 2016 TRANSFERENCIA DE RECURSOS | G2: Procedimiento
G3: Código : CPR-P01-F04
G4: Revisión : | H4: Página 1de 1
A7: Fecha: | C7: 2016-02-16 | F7: No. de Transferencia: | G7: UTC/SV/DEC/009/2016
A9: Nombre de la Unidad Responsable: | F9: SECRETARÍA DE VINCULACIÓN
A11: Monto Total Solicitado: | F11: 1130
A13: DESCRIPCIÓN DE LA APLICACIÓN SOLICITADA.
A15: Origen de los recursos:
A16: REF. | B16: PROCESO | C16: PARTIDA | D16: MES | E16: FINANCIAMIENTO | F16: NOMBRE DE LA PARTIDA PRESUPUESTAL | H16: IMPORTE
A17: 1 | B17: IP-VIN-MOV-INT-16 | C17: 3821 | D17: AGO. | E17: PROPIOS | F17: GASTOS DE ÓRDEN SOCIAL Y CULTURAL | H17: 1130
F28: SUMA TOTAL A TRANSFERIR | H28: =SUM(H17:H27) -> 1130
A30: Destino de recursos:
A31: REF. | B31: PROCESO | C31: PARTIDA | D31: MES | E31: RECURSO | F31: NOMBRE DE LA PARTIDA PRESUPUESTAL | H31: IMPORTE
A32: 1 | B32: IP-VIN-MOV-INT-16 | C32: 3921 | D32: FEB. | E32: PROPIOS | F32: IMPUESTOS Y DERECHOS | H32: 1130
F40: SUMA TOTAL A TRANSFERIR | H40: =SUM(H32:H39) -> 1130
A42: JUSTIFICACIÓN: COMPLEMENTO A LA SOLICITUD DV/DEC/033/2016.(MEMBRESIA UDUAL)
A45: REQUISITOS: La información solicitada en este formato deberá presentarse en forma completa atendiendo a lo requerido en cada uno de los recuadros señalados. Se deben incluir los anexos.

Sheet 010 GLA (hidden)
C2: POA 2016 TRANSFERENCIA DE RECURSOS | G2: Procedimiento
G3: Código : CPR-P01-F04
G4: Revisión : | H4: Página 1de 1
A7: Fecha: | C7: 2016-02-19 | F7: No. de Transferencia: | G7: UTC/SV/DEC/010/2016
A9: Nombre de la Unidad Responsable: | F9: SECRETARÍA DE VINCULACIÓN
A11: Monto Total Solicitado: | F11: 1000
A13: DESCRIPCIÓN DE LA APLICACIÓN SOLICITADA.
A15: Origen de los recursos:
A16: REF. | B16: PROCESO | C16: PARTIDA | D16: MES | E16: FINANCIAMIENTO | F16: NOMBRE DE LA PARTIDA PRESUPUESTAL | H16: IMPORTE
A17: 1 | B17: 1902E0425219 | C17: 3341 | D17: FEB | E17: FEDERAL | F17: SERVICIOS DE CAPACITACIÓN | H17: 1000
F28: SUMA TOTAL A TRANSFERIR | H28: =SUM(H17:H27) -> 1000
A30: Destino de recursos:
A31: REF. | B31: PROCESO | C31: PARTIDA | D31: MES | E31: RECURSO | F31: NOMBRE DE LA PARTIDA PRESUPUESTAL | H31: IMPORTE
A32: 1 | B32: 1902E0425219 | C32: 3181 | D32: FEB. | E32: FEDERAL | F32: SERVICIOS POSTALES Y TELEGRÁFICOS | H32: 1000
F40: SUMA TOTAL A TRANSFERIR | H40: =SUM(H32:H39) -> 1000
A42: JUSTIFICACIÓN: COMPLEMENTO A LA SOLICITUD DV/DEC/045/2016. (ENVÍO A ECUADOR)
A45: REQUISITOS: La información solicitada en este formato deberá presentarse en forma completa atendiendo a lo requerido en cada uno de los recuadros señalados. Se deben incluir los anexos.

Sheet 011 GLA (hidden)
C2: POA 2016 TRANSFERENCIA DE RECURSOS | G2: Procedimiento
G3: Código : CPR-P01-F04
G4: Revisión : | H4: Página 1de 1
A7: Fecha: | C7: 2016-02-19 | F7: No. de Transferencia: | G7: UTC/SV/DEC/011/2016
A9: Nombre de la Unidad Responsable: | F9: SECRETARÍA DE VINCULACIÓN
A11: Monto Total Solicitado: | F11: 5000
A13: DESCRIPCIÓN DE LA APLICACIÓN SOLICITADA.
A15: Origen de los recursos:
A16: REF. | B16: PROCESO | C16: PARTIDA | D16: MES | E16: FINANCIAMIENTO | F16: NOMBRE DE LA PARTIDA PRESUPUESTAL | H16: IMPORTE
A17: 1 | B17: PP-VIN-EDU-CONT-2016 | C17: 2214 | D17: FEB | E17: PRODUCTIVO | F17: ALIMENTACIÓN DE PNAS POR EL DESARROLLO DE OTROS PROG INSTITUCIONALES | H17: 5000
F28: SUMA TOTAL A TRANSFERIR | H28: =SUM(H17:H27) -> 5000
A30: Destino de recursos:
A31: REF. | B31: PROCESO | C31: PARTIDA | D31: MES | E31: RECURSO | F31: NOMBRE DE LA PARTIDA PRESUPUESTAL | H31: IMPORTE
A32: 1 | B32: PP-VIN-EDU-CONT-2016 | C32: 2211 | D32: FEB. | E32: PRODUCTIVO | F32: ALIMENTOS PARA EL PERSONAL INSTITUCIONAL | H32: 5000
F40: SUMA TOTAL A TRANSFERIR | H40: =SUM(H32:H39) -> 5000
A42: JUSTIFICACIÓN: COMPLEMENTO A LA SOLICITUD DV/DEC/046/2016 Y DV/DEC/047/2016. (COFFEBREAK MIXOLOGÍA)
A45: REQUISITOS: La información solicitada en este formato deberá presentarse en forma completa atendiendo a lo requerido en cada uno de los recuadros señalados. Se deben incluir los anexos.

Sheet 012 (hidden)
C2: POA 2016 TRANSFERENCIA DE RECURSOS | G2: Procedimiento
G3: Código : CPR-P01-F04
G4: Revisión : | H4: Página 1de 1
A7: Fecha: | C7: 2016-02-23 | F7: No. de Transferencia: | G7: UTC/SV/DEC/012/2016
A9: Nombre de la Unidad Responsable: | F9: SECRETARÍA DE VINCULACIÓN
A11: Monto Total Solicitado: | F11: 20075
A13: DESCRIPCIÓN DE LA APLICACIÓN SOLICITADA.
A15: Origen de los recursos:
A16: REF. | B16: PROCESO | C16: PARTIDA | D16: MES | E16: FINANCIAMIENTO | F16: NOMBRE DE LA PARTIDA PRESUPUESTAL | H16: IMPORTE
A17: 1 | B17: 1902E0425219 | C17: 3761 | D17: ENE | E17: FEDERAL | F17: VIÁTICOS EN EL EXTRANJERO | H17: 2435
A18: 2 | B18: 1902E0425219 | C18: 3761 | D18: ENE | E18: FEDERAL | F18: VIÁTICOS EN EL EXTRANJERO | H18: 17640
F28: SUMA TOTAL A TRANSFERIR | H28: =SUM(H17:H27) -> 20075
A30: Destino de recursos:
A31: REF. | B31: PROCESO | C31: PARTIDA | D31: MES | E31: RECURSO | F31: NOMBRE DE LA PARTIDA PRESUPUESTAL | H31: IMPORTE
A32: 1 | B32: 1902E0425219 | C32: 3781 | D32: FEB. | E32: FEDERAL | F32: SERV. INTEGRALES DE TRASLADO Y VIÁTICOS | H32: 2435
A33: 2 | B33: 1902E0425219 | C33: 3341 | D33: FEB. | E33: FEDERAL | F33: SERVICIOS DE CAPACITACIÓN | H33: 17640
F44: SUMA TOTAL A TRANSFERIR | H44: =SUM(H32:H43) -> 20075
A46: JUSTIFICACIÓN: PARA DAR SUFICIENCIA A LA SOLICITUD DV/DEC/049/050/053//2016.(PAGO HOSPEDAJE E INSCRIPCIÓN CONAHEC Y CURSO PLANEACIÓN ESTRATEGICAS,EV.DE PROBLEMAS, DESARROLLO DE HABILIDADES Y OPTIMIZACIÓN DE RESULTADOS)
A49: REQUISITOS: La información solicitada en este formato deberá presentarse en forma completa atendiendo a lo requerido en cada uno de los recuadros señalados. Se deben incluir los anexos.

Sheet 013 GLA (hidden)
C2: POA 2016 TRANSFERENCIA DE RECURSOS | G2: Procedimiento
G3: Código : CPR-P01-F04
G4: Revisión : | H4: Página 1de 1
A7: Fecha: | C7: 2016-02-24 | F7: No. de Transferencia: | G7: UTC/SV/DEC/013/2016
A9: Nombre de la Unidad Responsable: | F9: SECRETARÍA DE VINCULACIÓN
A11: Monto Total Solicitado: | F11: 1300
A13: DESCRIPCIÓN DE LA APLICACIÓN SOLICITADA.
A15: Origen de los recursos:
A16: REF. | B16: PROCESO | C16: PARTIDA | D16: MES | E16: FINANCIAMIENTO | F16: NOMBRE DE LA PARTIDA PRESUPUESTAL | H16: IMPORTE
A17: 1 | B17: PP-VIN-EDU-CONT-2016 | C17: 2214 | D17: ENE | E17: PRODUCTIVO | F17: ALIMENTACIÓN DE PNAS POR EL DESARROLLO DE OTROS PROG INSTITUCIONALES | H17: 1300
F28: SUMA TOTAL A TRANSFERIR | H28: =SUM(H17:H27) -> 1300
A30: Destino de recursos:
A31: REF. | B31: PROCESO | C31: PARTIDA | D31: MES | E31: RECURSO | F31: NOMBRE DE LA PARTIDA PRESUPUESTAL | H31: IMPORTE
A32: 1 | B32: PP-VIN-EDU-CONT-2016 | C32: 2481 | D32: FEB. | E32: PRODUCTIVO | F32: MATERIALES COMPLEMENTARIOS | H32: 1300
F44: SUMA TOTAL A TRANSFERIR | H44: =SUM(H32:H43) -> 1300
A46: JUSTIFICACIÓN: PARA DAR SUFICIENCIA A LA SOLICITUD DV/DEC/054/2016. (PAGO DE LETRERO DE SEÑALIZACIÓN EDUCACIÓN CONTINUA)
A49: REQUISITOS: La información solicitada en este formato deberá presentarse en forma completa atendiendo a lo requerido en cada uno de los recuadros señalados. Se deben incluir los anexos.

Sheet 014 (hidden)
C2: POA 2016 TRANSFERENCIA DE RECURSOS | G2: Procedimiento
G3: Código : CPR-P01-F04
G4: Revisión : | H4: Página 1de 1
A7: Fecha: | C7: 2016-03-14 | F7: No. de Transferencia: | G7: UTC/SV/DEC/014/2016
A9: Nombre de la Unidad Responsable: | F9: SECRETARÍA DE VINCULACIÓN
A11: Monto Total Solicitado: | F11: 6153
A13: DESCRIPCIÓN DE LA APLICACIÓN SOLICITADA.
A15: Origen de los recursos:
A16: REF. | B16: PROCESO | C16: PARTIDA | D16: MES | E16: FINANCIAMIENTO | F16: NOMBRE DE LA PARTIDA PRESUPUESTAL | H16: IMPORTE
A17: 1 | B17: IP-VIN-MOV-INT-16 | C17: 4421 | D17: ENE | E17: PROPIOS | F17: BECAS | H17: 5453
A18: 2 | B18: IP-VIN-MOV-INT-16 | C18: 4421 | D18: ENE | E18: PROPIOS | F18: BECAS | H18: 700
F28: SUMA TOTAL A TRANSFERIR | H28: =SUM(H17:H27) -> 6153
A30: Destino de recursos:
A31: REF. | B31: PROCESO | C31: PARTIDA | D31: MES | E31: RECURSO | F31: NOMBRE DE LA PARTIDA PRESUPUESTAL | H31: IMPORTE
A32: 1 | B32: IP-VIN-MOV-INT-16 | C32: 3781 | D32: MAR | E32: PROPIOS | F32: SERVICIOS INTEGRALES DE TRASLADO Y VIÁTICOS | H32: 5453
A33: 2 | B33: IP-VIN-MOV-INT-16 | C33: 2214 | D33: MAR | E33: PROPIOS | F33: ALIMENTACION DE PERSONAS POR EL DESARROLLO DE OTROS PROGRAMAS INSTITUCIONAL. | H33: 700
F44: SUMA TOTAL A TRANSFERIR | H44: =SUM(H32:H43) -> 6153
A46: JUSTIFICACIÓN: PARA DAR SUFICIENCIA A LA SOLICITUD DV/DEC/071 Y 072/2016.HOSPEDAJE Y ALIMENTOS DE LA CHEF ODILE ROBLIN INTERCAMBIO DOCENTE INTERNACIONAL, FRANCIA.
A49: REQUISITOS: La información solicitada en este formato deberá presentarse en forma completa atendiendo a lo requerido en cada uno de los recuadros señalados. Se deben incluir los anexos.

Sheet 015 GLA (hidden)
C2: POA 2016 TRANSFERENCIA DE RECURSOS | G2: Procedimiento
G3: Código : CPR-P01-F04
G4: Revisión : | H4: Página 1de 1
A7: Fecha: | C7: 2016-03-16 | F7: No. de Transferencia: | G7: UTC/SV/DEC/015/2016
A9: Nombre de la Unidad Responsable: | F9: SECRETARÍA DE VINCULACIÓN
A11: Monto Total Solicitado: | F11: 250
A13: DESCRIPCIÓN DE LA APLICACIÓN SOLICITADA.
A15: Origen de los recursos:
A16: REF. | B16: PROCESO | C16: PARTIDA | D16: MES | E16: FINANCIAMIENTO | F16: NOMBRE DE LA PARTIDA PRESUPUESTAL | H16: IMPORTE
A17: 1 | B17: PP-VIN-EDU-CONT-2016 | C17: 2214 | D17: MAR | E17: PRODUCTIVO | F17: ALIMENTACIÓN DE PNAS POR EL DESARROLLO DE OTROS PROG INSTITUCIONALES | H17: 250
F28: SUMA TOTAL A TRANSFERIR | H28: =SUM(H17:H27) -> 250
A30: Destino de recursos:
A31: REF. | B31: PROCESO | C31: PARTIDA | D31: MES | E31: RECURSO | F31: NOMBRE DE LA PARTIDA PRESUPUESTAL | H31: IMPORTE
A32: 1 | B32: PP-VIN-EDU-CONT-2016 | C32: 2231 | D32: MAR | E32: PRODUCTIVO | F32: UTENSILIOS MAT Y EQP MENORES P/SERVICIO DE ALIMENTACIONES | H32: 250
F44: SUMA TOTAL A TRANSFERIR | H44: =SUM(H32:H43) -> 250
A46: JUSTIFICACIÓN: PARA DAR SUFICIENCIA A LA SOLICITUD DV/DEC/074/2016. (REPOSICIÓN MATERIAL TALLER DE GASTRONOMÍA)
A49: REQUISITOS: La información solicitada en este formato deberá presentarse en forma completa atendiendo a lo requerido en cada uno de los recuadros señalados. Se deben incluir los anexos.

Sheet 016 GLA (hidden)
C2: POA 2016 TRANSFERENCIA DE RECURSOS | G2: Procedimiento
G3: Código : CPR-P01-F04
G4: Revisión : | H4: Página 1de 1
A7: Fecha: | C7: 2016-03-16 | F7: No. de Transferencia: | G7: UTC/SV/DEC/016/2016
A9: Nombre de la Unidad Responsable: | F9: SECRETARÍA DE VINCULACIÓN
A11: Monto Total Solicitado: | F11: 3000
A13: DESCRIPCIÓN DE LA APLICACIÓN SOLICITADA.
A15: Origen de los recursos:
A16: REF. | B16: PROCESO | C16: PARTIDA | D16: MES | E16: FINANCIAMIENTO | F16: NOMBRE DE LA PARTIDA PRESUPUESTAL | H16: IMPORTE
A17: 1 | B17: PP-VIN-EDU-CONT-2016 | C17: 2214 | D17: MAR | E17: PRODUCTIVO | F17: ALIMENTACIÓN DE PNAS POR EL DESARROLLO DE OTROS PROG INSTITUCIONALES | H17: 3000
F28: SUMA TOTAL A TRANSFERIR | H28: =SUM(H17:H27) -> 3000
A30: Destino de recursos:
A31: REF. | B31: PROCESO | C31: PARTIDA | D31: MES | E31: RECURSO | F31: NOMBRE DE LA PARTIDA PRESUPUESTAL | H31: IMPORTE
A32: 1 | B32: PP-VIN-EDU-CONT-2016 | C32: 2211 | D32: MAR | E32: PRODUCTIVO | F32: ALIMENTOS PARA EL PERSONAL INSTITUCIONAL | H32: 3000
F40: SUMA TOTAL A TRANSFERIR | H40: =SUM(H32:H39) -> 3000
A42: JUSTIFICACIÓN: COMPLEMENTO A LA SOLICITUD DV/DEC/076/2016 (COFFEBREAK MMARKETING DIGITAL PARA PYMES)
A45: REQUISITOS: La información solicitada en este formato deberá presentarse en forma completa atendiendo a lo requerido en cada uno de los recuadros señalados. Se deben incluir los anexos.

Sheet 017 (hidden)
C2: POA 2016 TRANSFERENCIA DE RECURSOS | G2: Procedimiento
G3: Código : CPR-P01-F04
G4: Revisión : | H4: Página 1de 1
A7: Fecha: | C7: 2016-04-06 | F7: No. de Transferencia: | G7: UTC/SV/DEC/017/2016
A9: Nombre de la Unidad Responsable: | F9: SECRETARÍA DE VINCULACIÓN
A11: Monto Total Solicitado: | F11: 6000
A13: DESCRIPCIÓN DE LA APLICACIÓN SOLICITADA.
A15: Origen de los recursos:
A16: REF. | B16: PROCESO | C16: PARTIDA | D16: MES | E16: FINANCIAMIENTO | F16: NOMBRE DE LA PARTIDA PRESUPUESTAL | H16: IMPORTE
A17: 1 | B17: IP-VIN-MOV-INT-16 | C17: 4421 | D17: ENE | E17: PROPIOS | F17: BECAS | H17: 6000
F28: SUMA TOTAL A TRANSFERIR | H28: =SUM(H17:H27) -> 6000
A30: Destino de recursos:
A31: REF. | B31: PROCESO | C31: PARTIDA | D31: MES | E31: RECURSO | F31: NOMBRE DE LA PARTIDA PRESUPUESTAL | H31: IMPORTE
A32: 1 | B32: IP-VIN-MOV-INT-16 | C32: 2211 | D32: ABRIL | E32: PROPIOS | F32: ALIMENTOS PARA EL PERSONAL INSTITUCIONAL | H32: 6000
F44: SUMA TOTAL A TRANSFERIR | H44: =SUM(H32:H43) -> 6000
A46: JUSTIFICACIÓN: SUFICIENCIA A LA SOLICITUD DV/DEC/080/16 COMPRA DE INSUMOS PARA LA SEMANA GASTRONÓMICA FRANCESA DEL 11 AL 15 DE ABRIL/2016
A49: REQUISITOS: La información solicitada en este formato deberá presentarse en forma completa atendiendo a lo requerido en cada uno de los recuadros señalados. Se deben incluir los anexos.

Sheet 018 (hidden)
C2: POA 2016 TRANSFERENCIA DE RECURSOS | G2: Procedimiento
G3: Código : CPR-P01-F04
G4: Revisión : | H4: Página 1de 1
A7: Fecha: | C7: 2016-04-06 | F7: No. de Transferencia: | G7: UTC/SV/DEC/018/2016
A9: Nombre de la Unidad Responsable: | F9: SECRETARÍA DE VINCULACIÓN
A11: Monto Total Solicitado: | F11: 240.08
A13: DESCRIPCIÓN DE LA APLICACIÓN SOLICITADA.
A15: Origen de los recursos:
A16: REF. | B16: PROCESO | C16: PARTIDA | D16: MES | E16: FINANCIAMIENTO | F16: NOMBRE DE LA PARTIDA PRESUPUESTAL | H16: IMPORTE
A17: 1 | B17: 1902E0425219 | C17: 3761 | D17: ENE | E17: FEDERAL | F17: VIÁTICOS EN EL EXTRANJERO | H17: 240.08
F28: SUMA TOTAL A TRANSFERIR | H28: =SUM(H17:H27) -> 240.08
A30: Destino de recursos:
A31: REF. | B31: PROCESO | C31: PARTIDA | D31: MES | E31: RECURSO | F31: NOMBRE DE LA PARTIDA PRESUPUESTAL | H31: IMPORTE
A32: 1 | B32: 1902E0425219 | C32: 3181 | D32: FEB | E32: FECERAL | F32: SERVICIOS POSTALES Y TELEGRÁFICOS | H32: 240.08
F44: SUMA TOTAL A TRANSFERIR | H44: =SUM(H32:H43) -> 240.08
A46: JUSTIFICACIÓN: PARA DAR SUFICIENCIA A LA SOLICITUD DV/DEC/041 ENVÍO INTERNACIONAL A SAN ANTONIO TEXAS
A49: REQUISITOS: La información solicitada en este formato deberá presentarse en forma completa atendiendo a lo requerido en cada uno de los recuadros señalados. Se deben incluir los anexos.

Sheet 019 (hidden)
C2: POA 2016 TRANSFERENCIA DE RECURSOS | G2: Procedimiento
G3: Código : CPR-P01-F04
G4: Revisión : | H4: Página 1de 1
A7: Fecha: | C7: 2016-04-06 | F7: No. de Transferencia: | G7: UTC/SV/DEC/019/2016
A9: Nombre de la Unidad Responsable: | F9: SECRETARÍA DE VINCULACIÓN
A11: Monto Total Solicitado: | F11: 1500
A13: DESCRIPCIÓN DE LA APLICACIÓN SOLICITADA.
A15: Origen de los recursos:
A16: REF. | B16: PROCESO | C16: PARTIDA | D16: MES | E16: FINANCIAMIENTO | F16: NOMBRE DE LA PARTIDA PRESUPUESTAL | H16: IMPORTE
A17: 1 | B17: 1902E0425219 | C17: 2214 | D17: ENE | E17: FEDERAL | F17: ALIM.DE PERSONAS P/EL DESARROLLO DE OTROS PROGRAMAS | H17: 1500
F28: SUMA TOTAL A TRANSFERIR | H28: =SUM(H17:H27) -> 1500
A30: Destino de recursos:
A31: REF. | B31: PROCESO | C31: PARTIDA | D31: MES | E31: RECURSO | F31: NOMBRE DE LA PARTIDA PRESUPUESTAL | H31: IMPORTE
A32: 1 | B32: 1902E0425219 | C32: 2211 | D32: 4 | E32: FEDERAL | F32: ALIMENTOS PARA PERSONAL INSTITUCIONAL | H32: 1500
F44: SUMA TOTAL A TRANSFERIR | H44: =SUM(H32:H43) -> 1500
A46: JUSTIFICACIÓN: PARA DAR SUFICIENCIA A LA SOLICITUD DV/DEC/082/2016. (PAGO DE ALIMENTOS LIC. REGINA Y LIC.MARIANA GLEZ.)
A49: REQUISITOS: La información solicitada en este formato deberá presentarse en forma completa atendiendo a lo requerido en cada uno de los recuadros señalados. Se deben incluir los anexos.

Sheet 020 GLA (hidden)
C2: POA 2016 TRANSFERENCIA DE RECURSOS | G2: Procedimiento
G3: Código : CPR-P01-F04
G4: Revisión : | H4: Página 1de 1
A7: Fecha: | C7: 2016-04-06 | F7: No. de Transferencia: | G7: UTC/SV/DEC/020/2016
A9: Nombre de la Unidad Responsable: | F9: SECRETARÍA DE VINCULACIÓN
A11: Monto Total Solicitado: | F11: 3700
A13: DESCRIPCIÓN DE LA APLICACIÓN SOLICITADA.
A15: Origen de los recursos:
A16: REF. | B16: PROCESO | C16: PARTIDA | D16: MES | E16: FINANCIAMIENTO | F16: NOMBRE DE LA PARTIDA PRESUPUESTAL | H16: IMPORTE
A17: 1 | B17: PP-VIN-EDU-CONT-2016 | C17: 2214 | D17: ABR | E17: PRODUCTIVO | F17: ALIMENTACIÓN DE PNAS POR EL DESARROLLO DE OTROS PROG INSTITUCIONALES | H17: 3000
A18: 2 | B18: PP-VIN-EDU-CONT-2016 | C18: 2214 | D18: MAY | E18: PRODUCTIVO | F18: ALIMENTACIÓN DE PNAS POR EL DESARROLLO DE OTROS PROG INSTITUCIONALES | H18: 700
F28: SUMA TOTAL A TRANSFERIR | H28: =SUM(H17:H27) -> 3700
A30: Destino de recursos:
A31: REF. | B31: PROCESO | C31: PARTIDA | D31: MES | E31: RECURSO | F31: NOMBRE DE LA PARTIDA PRESUPUESTAL | H31: IMPORTE
A32: 1 | B32: PP-VIN-EDU-CONT-2016 | C32: 2211 | D32: ABR | E32: PRODUCTIVO | F32: ALIMENTOS PARA EL PERSONAL INSTITUCIONAL | H32: 3000
A33: 2 | B33: PP-VIN-EDU-CONT-2016 | C33: 2211 | D33: ABR | E33: PRODUCTIVO | F33: ALIMENTOS PARA EL PERSONAL INSTITUCIONAL | H33: 700
F40: SUMA TOTAL A TRANSFERIR | H40: =SUM(H32:H39) -> 3700
A42: JUSTIFICACIÓN: PARA DAR SUFICIENCIA A LA SOLICITUD DV/DEC/083/2016 (COFFEBREAK SIMULADOR DE IMPUESTOS PARA PERSONAS FÍSICAS)
A45: REQUISITOS: La información solicitada en este formato deberá presentarse en forma completa atendiendo a lo requerido en cada uno de los recuadros señalados. Se deben incluir los anexos.

Sheet 021 (hidden)
C2: POA 2016 TRANSFERENCIA DE RECURSOS | G2: Procedimiento
G3: Código : CPR-P01-F04
G4: Revisión : | H4: Página 1de 1
A7: Fecha: | C7: 2016-04-08 | F7: No. de Transferencia: | G7: UTC/SV/DEC/021/2016
A9: Nombre de la Unidad Responsable: | F9: SECRETARÍA DE VINCULACIÓN
A11: Monto Total Solicitado: | F11: 1440.26
A13: DESCRIPCIÓN DE LA APLICACIÓN SOLICITADA.
A15: Origen de los recursos:
A16: REF. | B16: PROCESO | C16: PARTIDA | D16: MES | E16: FINANCIAMIENTO | F16: NOMBRE DE LA PARTIDA PRESUPUESTAL | H16: IMPORTE
A17: 1 | B17: 1902E0425219 | C17: 3761 | D17: ENE | E17: FEDERAL | F17: VIÁTICOS EN EL EXTRANJERO | H17: 1440.26
F28: SUMA TOTAL A TRANSFERIR | H28: =SUM(H17:H27) -> 1440.26
A30: Destino de recursos:
A31: REF. | B31: PROCESO | C31: PARTIDA | D31: MES | E31: RECURSO | F31: NOMBRE DE LA PARTIDA PRESUPUESTAL | H31: IMPORTE
A32: 1 | B32: 1902E0425219 | C32: 3181 | D32: ABRIL | E32: FEDERAL | F32: SERVICIOS POSTALES Y TELEGRÁFICOS | H32: 1440.26
F44: SUMA TOTAL A TRANSFERIR | H44: =SUM(H32:H43) -> 1440.26
A46: JUSTIFICACIÓN: PARA DAR SUFICIENCIA A LA SOLICITUD DV/DEC/085/086/2016.(ENVÍOS INTERNACIONALES).
A49: REQUISITOS: La información solicitada en este formato deberá presentarse en forma completa atendiendo a lo requerido en cada uno de los recuadros señalados. Se deben incluir los anexos.

Sheet 022 (hidden)
C2: POA 2016 TRANSFERENCIA DE RECURSOS | G2: Procedimiento
G3: Código : CPR-P01-F04
G4: Revisión : | H4: Página 1de 1
A7: Fecha: | C7: 2016-04-14 | F7: No. de Transferencia: | G7: UTC/SV/DEC/022/2016
A9: Nombre de la Unidad Responsable: | F9: SECRETARÍA DE VINCULACIÓN
A11: Monto Total Solicitado: | F11: 988
A13: DESCRIPCIÓN DE LA APLICACIÓN SOLICITADA.
A15: Origen de los recursos:
A16: REF. | B16: PROCESO | C16: PARTIDA | D16: MES | E16: FINANCIAMIENTO | F16: NOMBRE DE LA PARTIDA PRESUPUESTAL | H16: IMPORTE
A17: 1 | B17: 1902E0425219 | C17: 3761 | D17: ENE | E17: FEDERAL | F17: VIÁTICOS EN EL EXTRANJERO | H17: 988
F28: SUMA TOTAL A TRANSFERIR | H28: =SUM(H17:H27) -> 988
A30: Destino de recursos:
A31: REF. | B31: PROCESO | C31: PARTIDA | D31: MES | E31: RECURSO | F31: NOMBRE DE LA PARTIDA PRESUPUESTAL | H31: IMPORTE
A32: 1 | B32: 1902E0425219 | C32: 2214 | D32: ABRIL | E32: FEDERAL | F32: ALIMENTACIÓN DE PERSONAS POR EL DESARROLLO DE OTROS PROGRAMAS INSTITUCIONALES | H32: 988
F44: SUMA TOTAL A TRANSFERIR | H44: =SUM(H32:H43) -> 988
A46: JUSTIFICACIÓN: PARA DAR SUFICIENCIA A LA SOLICITUD DV/DEC/098/2016.(COMIDA CON LA CHEF ODILE ROBLIN).
A49: REQUISITOS: La información solicitada en este formato deberá presentarse en forma completa atendiendo a lo requerido en cada uno de los recuadros señalados. Se deben incluir los anexos.

Sheet 023 (hidden)
C2: POA 2016 TRANSFERENCIA DE RECURSOS | G2: Procedimiento
G3: Código : CPR-P01-F04
G4: Revisión : | H4: Página 1de 1
A7: Fecha: | C7: 2016-04-14 | F7: No. de Transferencia: | G7: UTC/SV/DEC/023/2016
A9: Nombre de la Unidad Responsable: | F9: SECRETARÍA DE VINCULACIÓN
A11: Monto Total Solicitado: | F11: 3600
A13: DESCRIPCIÓN DE LA APLICACIÓN SOLICITADA.
A15: Origen de los recursos:
A16: REF. | B16: PROCESO | C16: PARTIDA | D16: MES | E16: FINANCIAMIENTO | F16: NOMBRE DE LA PARTIDA PRESUPUESTAL | H16: IMPORTE
A17: 1 | B17: 1902E0425219 | C17: 3711 | D17: ENE | E17: FEDERAL | F17: PASAJES AEREOS NACIONALES | H17: 2000
A18: 2 | B18: 1902E0425219 | C18: 3721 | D18: ENE | E18: FEDERAL | F18: PASAJES TERRESTRES NACIONALES | H18: 1000
A19: 3 | B19: 1902E0425219 | C19: 3751 | D19: ENE | E19: FEDERAL | F19: VIATICOS EN EL PAIS | H19: 600
F28: SUMA TOTAL A TRANSFERIR | H28: =SUM(H17:H27) -> 3600
A30: Destino de recursos:
A31: REF. | B31: PROCESO | C31: PARTIDA | D31: MES | E31: RECURSO | F31: NOMBRE DE LA PARTIDA PRESUPUESTAL | H31: IMPORTE
A32: 1 | B32: 1902E0425219 | C32: 3341 | D32: ABRIL | E32: FEDERAL | F32: SERVICIOS DE CAPACITACIÓN | H32: 2000
A33: 2 | B33: 1902E0425219 | C33: 3341 | D33: ABRIL | E33: FEDERAL | F33: SERVICIOS DE CAPACITACIÓN | H33: 1000
A34: 3 | B34: 1902E0425219 | C34: 3341 | D34: ABRIL | E34: FEDERAL | F34: SERVICIOS DE CAPACITACIÓN | H34: 600
F44: SUMA TOTAL A TRANSFERIR | H44: =SUM(H32:H43) -> 3600
A46: JUSTIFICACIÓN: PARA DAR SUFICIENCIA A LA SOLICITUD DV/DEC/103/2016.(INSCRIPCIÓN REGINA CURSO DE EDUCACIÓN CONTINUA).
A49: REQUISITOS: La información solicitada en este formato deberá presentarse en forma completa atendiendo a lo requerido en cada uno de los recuadros señalados. Se deben incluir los anexos.

Sheet 024 (hidden)
C2: POA 2016 TRANSFERENCIA DE RECURSOS | G2: Procedimiento
G3: Código : CPR-P01-F04
G4: Revisión : | H4: Página 1de 1
A7: Fecha: | C7: 2016-04-26 | F7: No. de Transferencia: | G7: UTC/SV/DEC/024/2016
A9: Nombre de la Unidad Responsable: | F9: SECRETARÍA DE VINCULACIÓN
A11: Monto Total Solicitado: | F11: 2400
A13: DESCRIPCIÓN DE LA APLICACIÓN SOLICITADA.
A15: Origen de los recursos:
A16: REF. | B16: PROCESO | C16: PARTIDA | D16: MES | E16: FINANCIAMIENTO | F16: NOMBRE DE LA PARTIDA PRESUPUESTAL | H16: IMPORTE
A17: 1 | B17: IP-VIN-MEXPROTEC-2016 | C17: 3921 | D17: JUN. | E17: PROPIOS | F17: IMPUESTOS Y DERECHOS | H17: 2400
F28: SUMA TOTAL A TRANSFERIR | H28: =SUM(H17:H27) -> 2400
A30: Destino de recursos:
A31: REF. | B31: PROCESO | C31: PARTIDA | D31: MES | E31: RECURSO | F31: NOMBRE DE LA PARTIDA PRESUPUESTAL | H31: IMPORTE
A32: 1 | B32: IP-VIN-MEXPROTEC-2016 | C32: 3781 | D32: ABRIL | E32: PROPIOS | F32: SERVICIOS INTEGRALES DE TRASLADO Y VIÁTICOS | H32: 2400
F44: SUMA TOTAL A TRANSFERIR | H44: =SUM(H32:H43) -> 2400
A46: JUSTIFICACIÓN: PARA DAR SUFICIENCIA A LA SOLICITUD DV/DEC/106 Y 107/2016.
A49: REQUISITOS: La información solicitada en este formato deberá presentarse en forma completa atendiendo a lo requerido en cada uno de los recuadros señalados. Se deben incluir los anexos.

Sheet 025 GLA (hidden)
C2: POA 2016 TRANSFERENCIA DE RECURSOS | G2: Procedimiento
G3: Código : CPR-P01-F04
G4: Revisión : | H4: Página 1de 1
A7: Fecha: | C7: 2016-04-26 | F7: No. de Transferencia: | G7: UTC/SV/DEC/025/2016
A9: Nombre de la Unidad Responsable: | F9: SECRETARÍA DE VINCULACIÓN
A11: Monto Total Solicitado: | F11: 600
A13: DESCRIPCIÓN DE LA APLICACIÓN SOLICITADA.
A15: Origen de los recursos:
A16: REF. | B16: PROCESO | C16: PARTIDA | D16: MES | E16: FINANCIAMIENTO | F16: NOMBRE DE LA PARTIDA PRESUPUESTAL | H16: IMPORTE
A17: 1 | B17: PP-VIN-EDU-CONT-2016 | C17: 3751 | D17: ENE | E17: PRODUCTIVO | F17: VIATICOS EN EL PAIS | H17: 600
F28: SUMA TOTAL A TRANSFERIR | H28: =SUM(H17:H27) -> 600
A30: Destino de recursos:
A31: REF. | B31: PROCESO | C31: PARTIDA | D31: MES | E31: RECURSO | F31: NOMBRE DE LA PARTIDA PRESUPUESTAL | H31: IMPORTE
A32: 1 | B32: PP-VIN-EDU-CONT-2016 | C32: 2941 | D32: ABRIL | E32: PRODUCTIVO | F32: REFACCIONES Y ACCESORIOS DE EQP DE COMPUTO Y TICS | H32: 600
F44: SUMA TOTAL A TRANSFERIR | H44: =SUM(H32:H43) -> 600
A46: JUSTIFICACIÓN: PARA DAR SUFICIENCIA A LA SOLICITUD DV/DEC/109/2016 (COMPRA DE EQUIPO PARA CURSOS BOCINAS Y MULTICONTACTOS)
A49: REQUISITOS: La información solicitada en este formato deberá presentarse en forma completa atendiendo a lo requerido en cada uno de los recuadros señalados. Se deben incluir los anexos.

Sheet 026 (hidden)
C2: POA 2016 TRANSFERENCIA DE RECURSOS | G2: Procedimiento
G3: Código : CPR-P01-F04
G4: Revisión : | H4: Página 1de 1
A7: Fecha: | C7: 2016-04-26 | F7: No. de Transferencia: | G7: UTC/SV/DEC/026/2016
A9: Nombre de la Unidad Responsable: | F9: SECRETARÍA DE VINCULACIÓN
A11: Monto Total Solicitado: | F11: 1241
A13: DESCRIPCIÓN DE LA APLICACIÓN SOLICITADA.
A15: Origen de los recursos:
A16: REF. | B16: PROCESO | C16: PARTIDA | D16: MES | E16: FINANCIAMIENTO | F16: NOMBRE DE LA PARTIDA PRESUPUESTAL | H16: IMPORTE
A17: 1 | B17: IP-VIN-MOV-INT-16 | C17: 3821 | D17: AGO. | E17: PROPIOS | F17: GASTOS DE ÓRDEN SOCIAL Y CULTURAL | H17: 1241
F28: SUMA TOTAL A TRANSFERIR | H28: =SUM(H17:H27) -> 1241
A30: Destino de recursos:
A31: REF. | B31: PROCESO | C31: PARTIDA | D31: MES | E31: RECURSO | F31: NOMBRE DE LA PARTIDA PRESUPUESTAL | H31: IMPORTE
A32: 1 | B32: IP-VIN-MOV-INT-16 | C32: 2214 | D32: ABRIL | E32: PROPIOS | F32: ALIMENTACIÓN DE PERSONAS POR EL DESARROLLO DE OTROS PROGRAMAS INSTITUCIONALES. | H32: 791
A33: 2 | B33: IP-VIN-MOV-INT-16 | C33: 2611 | D33: ABRIL | E33: PROPIOS | F33: COMBUSTIBLE | H33: 450
F44: SUMA TOTAL A TRANSFERIR | H44: =SUM(H32:H43) -> 1241
A46: JUSTIFICACIÓN: PARA DAR SUFICIENCIA A LA SOLICITUD DV/DEC/110 Y 111/2016.(COMIDA CON LA CHF ODILE ROBLIN)
A49: REQUISITOS: La información solicitada en este formato deberá presentarse en forma completa atendiendo a lo requerido en cada uno de los recuadros señalados. Se deben incluir los anexos.

Sheet 027 GLA (hidden)
C2: POA 2016 TRANSFERENCIA DE RECURSOS | G2: Procedimiento
G3: Código : CPR-P01-F04
G4: Revisión : | H4: Página 1de 1
A7: Fecha: | C7: 2016-05-02 | F7: No. de Transferencia: | G7: UTC/SV/DEC/027/2016
A9: Nombre de la Unidad Responsable: | F9: SECRETARÍA DE VINCULACIÓN
A11: Monto Total Solicitado: | F11: 2300
A13: DESCRIPCIÓN DE LA APLICACIÓN SOLICITADA.
A15: Origen de los recursos:
A16: REF. | B16: PROCESO | C16: PARTIDA | D16: MES | E16: FINANCIAMIENTO | F16: NOMBRE DE LA PARTIDA PRESUPUESTAL | H16: IMPORTE
A17: 1 | B17: IP-VIN-MEXPROTEC-2016 | C17: 3921 | D17: MAY | E17: PROPIOS | F17: IMPUESTOS Y DERECHOS | H17: 2300
F28: SUMA TOTAL A TRANSFERIR | H28: =SUM(H17:H27) -> 2300
A30: Destino de recursos:
A31: REF. | B31: PROCESO | C31: PARTIDA | D31: MES | E31: RECURSO | F31: NOMBRE DE LA PARTIDA PRESUPUESTAL | H31: IMPORTE
A32: 1 | B32: IP-VIN-MEXPROTEC-2016 | C32: 3821 | D32: ABRIL | E32: PROPIOS | F32: GASTOS DE ORDEN SOCIA Y CULTURAL | H32: 2300
F44: SUMA TOTAL A TRANSFERIR | H44: =SUM(H32:H43) -> 2300
A46: JUSTIFICACIÓN: PARA DAR SUFICIENCIA A LA SOLICITUD DV/DEC/106/2016. (HOSPEDAJE ALUMNOS MEXPROTEC QUERETARO)
A49: REQUISITOS: La información solicitada en este formato deberá presentarse en forma completa atendiendo a lo requerido en cada uno de los recuadros señalados. Se deben incluir los anexos.

Sheet 028 GLA (hidden)
C2: POA 2016 TRANSFERENCIA DE RECURSOS | G2: Procedimiento
G3: Código : CPR-P01-F04
G4: Revisión : | H4: Página 1de 1
A7: Fecha: | C7: 2016-05-03 | F7: No. de Transferencia: | G7: UTC/SV/DEC/028/2016
A9: Nombre de la Unidad Responsable: | F9: SECRETARÍA DE VINCULACIÓN
A11: Monto Total Solicitado: | F11: 1700
A13: DESCRIPCIÓN DE LA APLICACIÓN SOLICITADA.
A15: Origen de los recursos:
A16: REF. | B16: PROCESO | C16: PARTIDA | D16: MES | E16: FINANCIAMIENTO | F16: NOMBRE DE LA PARTIDA PRESUPUESTAL | H16: IMPORTE
A17: 1 | B17: PP-VIN-EDU-CONT-2016 | C17: 2214 | D17: MAY | E17: PRODUCTIVO | F17: ALIMENTACIÓN DE PNAS POR EL DESARROLLO DE PROG INST | H17: 1700
F28: SUMA TOTAL A TRANSFERIR | H28: =SUM(H17:H27) -> 1700
A30: Destino de recursos:
A31: REF. | B31: PROCESO | C31: PARTIDA | D31: MES | E31: RECURSO | F31: NOMBRE DE LA PARTIDA PRESUPUESTAL | H31: IMPORTE
A32: 1 | B32: PP-VIN-EDU-CONT-2016 | C32: 2211 | D32: MAY | E32: PRODUCTIVO | F32: ALIMENTOS PARA EL PERSONAL INSTITUCIONAL | H32: 1700
F44: SUMA TOTAL A TRANSFERIR | H44: =SUM(H32:H43) -> 1700
A46: JUSTIFICACIÓN: PARA DAR SUFICIENCIA A LA SOLICITUD DV/DEC/113/2016. (COFFEEBREAK TALLER DE BARISTA)
A49: REQUISITOS: La información solicitada en este formato deberá presentarse en forma completa atendiendo a lo requerido en cada uno de los recuadros señalados. Se deben incluir los anexos.

Sheet 029 (hidden)
C2: POA 2016 TRANSFERENCIA DE RECURSOS | G2: Procedimiento
G3: Código : CPR-P01-F04
G4: Revisión : | H4: Página 1de 1
A7: Fecha: | C7: 2016-05-05 | F7: No. de Transferencia: | G7: UTC/SV/DEC/029/2016
A9: Nombre de la Unidad Responsable: | F9: SECRETARÍA DE VINCULACIÓN
A11: Monto Total Solicitado: | F11: 587
A13: DESCRIPCIÓN DE LA APLICACIÓN SOLICITADA.
A15: Origen de los recursos:
A16: REF. | B16: PROCESO | C16: PARTIDA | D16: MES | E16: FINANCIAMIENTO | F16: NOMBRE DE LA PARTIDA PRESUPUESTAL | H16: IMPORTE
A17: 1 | B17: 1902E0425219 | C17: 3761 | D17: ENERO | E17: FEDERAL | F17: VIÁTICOS EN EL EXTRANJERO | H17: 587
F28: SUMA TOTAL A TRANSFERIR | H28: =SUM(H17:H27) -> 587
A30: Destino de recursos:
A31: REF. | B31: PROCESO | C31: PARTIDA | D31: MES | E31: RECURSO | F31: NOMBRE DE LA PARTIDA PRESUPUESTAL | H31: IMPORTE
A32: 1 | B32: 1902E0425219 | C32: 3181 | D32: MAYO | E32: FEDERAL | F32: SERVICIOS INTEGRALES DE TRASLADO Y VIATICOS | H32: 587
F44: SUMA TOTAL A TRANSFERIR | H44: =SUM(H32:H43) -> 587
A46: JUSTIFICACIÓN: PARA DAR SUFICIENCIA A LA SOLICITUD DV/DEC/ 114 Y 115/2016.(envíos nacionales).
A49: REQUISITOS: La información solicitada en este formato deberá presentarse en forma completa atendiendo a lo requerido en cada uno de los recuadros señalados. Se deben incluir los anexos.

Sheet 030 (hidden)
C2: POA 2016 TRANSFERENCIA DE RECURSOS | G2: Procedimiento
G3: Código : CPR-P01-F04
G4: Revisión : | H4: Página 1de 1
A7: Fecha: | C7: 2016-05-17 | F7: No. de Transferencia: | G7: UTC/SV/DEC/030/2016
A9: Nombre de la Unidad Responsable: | F9: SECRETARÍA DE VINCULACIÓN
A11: Monto Total Solicitado: | F11: 294
A13: DESCRIPCIÓN DE LA APLICACIÓN SOLICITADA.
A15: Origen de los recursos:
A16: REF. | B16: PROCESO | C16: PARTIDA | D16: MES | E16: FINANCIAMIENTO | F16: NOMBRE DE LA PARTIDA PRESUPUESTAL | H16: IMPORTE
A17: 1 | B17: 1902E0425219 | C17: 3751 | D17: MAYO | E17: FEDERAL | F17: VIÁTICOS EN EL PAÍS | H17: 294
F28: SUMA TOTAL A TRANSFERIR | H28: =SUM(H17:H27) -> 294
A30: Destino de recursos:
A31: REF. | B31: PROCESO | C31: PARTIDA | D31: MES | E31: RECURSO | F31: NOMBRE DE LA PARTIDA PRESUPUESTAL | H31: IMPORTE
A32: 1 | B32: 1902E0425219 | C32: 3181 | D32: MAYO | E32: FEDERAL | F32: SERVICIOS POSTALES Y TELEGRÁFICOS | H32: 294
F44: SUMA TOTAL A TRANSFERIR | H44: =SUM(H32:H43) -> 294
A46: JUSTIFICACIÓN: PARA DAR SUFICIENCIA A LA SOLICITUD DV/DEC/121/16.
A49: REQUISITOS: La información solicitada en este formato deberá presentarse en forma completa atendiendo a lo requerido en cada uno de los recuadros señalados. Se deben incluir los anexos.

Sheet 031 (hidden)
C2: POA 2016 TRANSFERENCIA DE RECURSOS | G2: Procedimiento
G3: Código : CPR-P01-F04
G4: Revisión : | H4: Página 1de 1
A7: Fecha: | C7: 2016-05-17 | F7: No. de Transferencia: | G7: UTC/SV/DEC/031/2016
A9: Nombre de la Unidad Responsable: | F9: SECRETARÍA DE VINCULACIÓN
A11: Monto Total Solicitado: | F11: 4027
A13: DESCRIPCIÓN DE LA APLICACIÓN SOLICITADA.
A15: Origen de los recursos:
A16: REF. | B16: PROCESO | C16: PARTIDA | D16: MES | E16: FINANCIAMIENTO | F16: NOMBRE DE LA PARTIDA PRESUPUESTAL | H16: IMPORTE
A17: 1 | B17: IP-VIN-MOV-INT-16 | C17: 3821 | D17: AGO. | E17: PROPIOS | F17: GASTOS DE ÓRDEN SOCIAL Y CULTURAL | H17: 4027
F28: SUMA TOTAL A TRANSFERIR | H28: =SUM(H17:H27) -> 4027
A30: Destino de recursos:
A31: REF. | B31: PROCESO | C31: PARTIDA | D31: MES | E31: RECURSO | F31: NOMBRE DE LA PARTIDA PRESUPUESTAL | H31: IMPORTE
A32: 1 | B32: IP-VIN-MOV-INT-16 | C32: 3711 | D32: MAYO | E32: PROPIOS | F32: PASAJES AEREOS NACIONALES | H32: 4027
F44: SUMA TOTAL A TRANSFERIR | H44: =SUM(H32:H43) -> 4027
A46: JUSTIFICACIÓN: PARA DAR SUFICIENCIA A LA SOLICITUD DV/DEC/122/16.
A49: REQUISITOS: La información solicitada en este formato deberá presentarse en forma completa atendiendo a lo requerido en cada uno de los recuadros señalados. Se deben incluir los anexos.

Sheet 032 (hidden)
C2: POA 2016 TRANSFERENCIA DE RECURSOS | G2: Procedimiento
G3: Código : CPR-P01-F04
G4: Revisión : | H4: Página 1de 1
A7: Fecha: | C7: 2016-06-13 | F7: No. de Transferencia: | G7: UTC/SV/DEC/032/2016
A9: Nombre de la Unidad Responsable: | F9: SECRETARÍA DE VINCULACIÓN
A11: Monto Total Solicitado: | F11: 800
A13: DESCRIPCIÓN DE LA APLICACIÓN SOLICITADA.
A15: Origen de los recursos:
A16: REF. | B16: PROCESO | C16: PARTIDA | D16: MES | E16: FINANCIAMIENTO | F16: NOMBRE DE LA PARTIDA PRESUPUESTAL | H16: IMPORTE
A17: 1 | B17: 1902E0425219 | C17: 3761 | D17: MAR. | E17: federal | F17: VIÁTICOS EN EL EXTRANJERO | H17: 800
F28: SUMA TOTAL A TRANSFERIR | H28: =SUM(H17:H27) -> 800
A30: Destino de recursos:
A31: REF. | B31: PROCESO | C31: PARTIDA | D31: MES | E31: RECURSO | F31: NOMBRE DE LA PARTIDA PRESUPUESTAL | H31: IMPORTE
A32: 1 | B32: 1902E0425219 | C32: 3181 | D32: JUNIO | E32: FEDERAL | F32: SERVICIOS POSTALES Y TELEGRÁFICOS | H32: 800
F44: SUMA TOTAL A TRANSFERIR | H44: =SUM(H32:H43) -> 800
A46: JUSTIFICACIÓN: PARA DAR SUFICIENCIA A LA SOLICITUD DV/DEC/139/16.(ENVÍO INT.MENDOZA ARGENTINA, )
A49: REQUISITOS: La información solicitada en este formato deberá presentarse en forma completa atendiendo a lo requerido en cada uno de los recuadros señalados. Se deben incluir los anexos.

Sheet 033 (hidden)
C2: POA 2016 TRANSFERENCIA DE RECURSOS | G2: Procedimiento
G3: Código : CPR-P01-F04
G4: Revisión : | H4: Página 1de 1
A7: Fecha: | C7: 2016-06-21 | F7: No. de Transferencia: | G7: UTC/SV/DEC/033/2016
A9: Nombre de la Unidad Responsable: | F9: SECRETARÍA DE VINCULACIÓN
A11: Monto Total Solicitado: | F11: 750
A13: DESCRIPCIÓN DE LA APLICACIÓN SOLICITADA.
A15: Origen de los recursos:
A16: REF. | B16: PROCESO | C16: PARTIDA | D16: MES | E16: FINANCIAMIENTO | F16: NOMBRE DE LA PARTIDA PRESUPUESTAL | H16: IMPORTE
A17: 1 | B17: IP-VIN-MOV-INT-16 | C17: 3821 | D17: AGO. | E17: PROPIOS | F17: GASTOS DE ÓRDEN SOCIAL Y CULTURAL | H17: 750
F28: SUMA TOTAL A TRANSFERIR | H28: =SUM(H17:H27) -> 750
A30: Destino de recursos:
A31: REF. | B31: PROCESO | C31: PARTIDA | D31: MES | E31: RECURSO | F31: NOMBRE DE LA PARTIDA PRESUPUESTAL | H31: IMPORTE
A32: 1 | B32: IP-VIN-MOV-INT-16 | C32: 3181 | D32: JUN. | E32: PROPIOS | F32: SERVICIOS POSTALES Y TELEGRÁFICOS | H32: 750
F44: SUMA TOTAL A TRANSFERIR | H44: =SUM(H32:H43) -> 750
A46: JUSTIFICACIÓN: PARA DAR SUFICIENCIA A LA SOLICITUD DV/DEC/146/16.(ENVÍO INT. A CLAUDIA MILENA DÍAZ ULLOA. )
A49: REQUISITOS: La información solicitada en este formato deberá presentarse en forma completa atendiendo a lo requerido en cada uno de los recuadros señalados. Se deben incluir los anexos.

Sheet 034 (hidden)
C2: POA 2016 TRANSFERENCIA DE RECURSOS | G2: Procedimiento
G3: Código : CPR-P01-F04
G4: Revisión : | H4: Página 1de 1
A7: Fecha: | C7: 2016-06-21 | F7: No. de Transferencia: | G7: UTC/SV/DEC/034/2016
A9: Nombre de la Unidad Responsable: | F9: SECRETARÍA DE VINCULACIÓN
A11: Monto Total Solicitado: | F11: 750
A13: DESCRIPCIÓN DE LA APLICACIÓN SOLICITADA.
A15: Origen de los recursos:
A16: REF. | B16: PROCESO | C16: PARTIDA | D16: MES | E16: FINANCIAMIENTO | F16: NOMBRE DE LA PARTIDA PRESUPUESTAL | H16: IMPORTE
A17: 1 | B17: PP-VIN INTERN-16 | C17: 3761 | D17: MAYO | E17: PRODUCTIVO | F17: VIÁTICOS EN EL EXTRANJERO | H17: 750
F28: SUMA TOTAL A TRANSFERIR | H28: =SUM(H17:H27) -> 750
A30: Destino de recursos:
A31: REF. | B31: PROCESO | C31: PARTIDA | D31: MES | E31: RECURSO | F31: NOMBRE DE LA PARTIDA PRESUPUESTAL | H31: IMPORTE
A32: 1 | B32: PP-VIN-INTERN-16 | C32: 3181 | D32: JUN. | E32: PRODUCTIVO | F32: SERVICIOS POSTALES Y TELEGRÁFICOS | H32: 750
F44: SUMA TOTAL A TRANSFERIR | H44: =SUM(H32:H43) -> 750
A46: JUSTIFICACIÓN: PARA DAR SUFICIENCIA A LA SOLICITUD DV/DEC/147/16.(ENVÍO INT. A LUIS MORENO IZQUIERDO Instituto de Economía Internacional Edificio de Institutos Universitarios UNIVERSIDAD DE ALICANTE )
A49: REQUISITOS: La información solicitada en este formato deberá presentarse en forma completa atendiendo a lo requerido en cada uno de los recuadros señalados. Se deben incluir los anexos.

Sheet 035 (hidden)
C2: POA 2016 TRANSFERENCIA DE RECURSOS | G2: Procedimiento
G3: Código : CPR-P01-F04
G4: Revisión : | H4: Página 1de 1
A7: Fecha: | C7: 2016-06-21 | F7: No. de Transferencia: | G7: UTC/SV/DEC/035/2016
A9: Nombre de la Unidad Responsable: | F9: SECRETARÍA DE VINCULACIÓN
A11: Monto Total Solicitado: | F11: 382.56
A13: DESCRIPCIÓN DE LA APLICACIÓN SOLICITADA.
A15: Origen de los recursos:
A16: REF. | B16: PROCESO | C16: PARTIDA | D16: MES | E16: FINANCIAMIENTO | F16: NOMBRE DE LA PARTIDA PRESUPUESTAL | H16: IMPORTE
A17: 1 | B17: IP-VIN-MEXPROTEC-16 | C17: 3821 | D17: MAYO | E17: PROPIOS | F17: GASTOS DE ÓRDEN SOCIAL Y CULTURAL | H17: 382.56
F28: SUMA TOTAL A TRANSFERIR | H28: =SUM(H17:H27) -> 382.56
A30: Destino de recursos:
A31: REF. | B31: PROCESO | C31: PARTIDA | D31: MES | E31: RECURSO | F31: NOMBRE DE LA PARTIDA PRESUPUESTAL | H31: IMPORTE
A32: 1 | B32: IP-VIN-MEXPROTEC-16 | C32: 3181 | D32: JUN. | E32: PROPIOS | F32: SERVICIOS POSTALES Y TELEGRÁFICOS | H32: 382.56
F44: SUMA TOTAL A TRANSFERIR | H44: =SUM(H32:H43) -> 382.56
A46: JUSTIFICACIÓN: PARA DAR SUFICIENCIA A LA SOLICITUD DV/DEC/150/16.(REEMBOLSO A LIC. MARIA REGINA OTERO ROCHE POR CONCEPTO DE ENVÍO NACIONAL A Lic. Lorena Alvarado Buendía CGUTyP.)
A49: REQUISITOS: La información solicitada en este formato deberá presentarse en forma completa atendiendo a lo requerido en cada uno de los recuadros señalados. Se deben incluir los anexos.

Sheet 036 (hidden)
C2: POA 2016 TRANSFERENCIA DE RECURSOS | G2: Procedimiento
G3: Código : CPR-P01-F04
G4: Revisión : | H4: Página 1de 1
A7: Fecha: | C7: 2016-06-22 | F7: No. de Transferencia: | G7: UTC/SV/DEC/036/2016
A9: Nombre de la Unidad Responsable: | F9: SECRETARÍA DE VINCULACIÓN
A11: Monto Total Solicitado: | F11: 2500
A13: DESCRIPCIÓN DE LA APLICACIÓN SOLICITADA.
A15: Origen de los recursos:
A16: REF. | B16: PROCESO | C16: PARTIDA | D16: MES | E16: FINANCIAMIENTO | F16: NOMBRE DE LA PARTIDA PRESUPUESTAL | H16: IMPORTE
A17: 1 | B17: PP-VIN-INTERN-16 | C17: 3761 | D17: MARZO | E17: PRODUCTIVO | F17: VIÁTICOS EN EL EXTRANJERO | H17: 2500
F28: SUMA TOTAL A TRANSFERIR | H28: =SUM(H17:H27) -> 2500
A30: Destino de recursos:
A31: REF. | B31: PROCESO | C31: PARTIDA | D31: MES | E31: RECURSO | F31: NOMBRE DE LA PARTIDA PRESUPUESTAL | H31: IMPORTE
A32: 1 | B32: PP-VIN-INTERN-16 | C32: 3781 | D32: JUN. | E32: PRODUCTIVO | F32: SERVICIOS INTEGRALES DE TRASLADO Y VIÁTICOS | H32: 2500
F44: SUMA TOTAL A TRANSFERIR | H44: =SUM(H32:H43) -> 2500
A46: JUSTIFICACIÓN: PARA DAR SUFICIENCIA A LA SOLICITUD DV/DEC/152/16.(GTOS. POR COMPROBAR, LIC. MARIA REGINA OTERO ROCHE POR CONCEPTO DE COMIDA CON LIC. OMAR MASTANDREA SECRETARIO DE EEXTENSIÓN DE CIENCIAS ECONÓMICAS Y SOCIALES UNIV. CATÓLICA DE LA PLATA.)
A49: REQUISITOS: La información solicitada en este formato deberá presentarse en forma completa atendiendo a lo requerido en cada uno de los recuadros señalados. Se deben incluir los anexos.

Sheet 037 GLA (hidden)
C2: POA 2016 TRANSFERENCIA DE RECURSOS | G2: Procedimiento
G3: Código : CPR-P01-F04
G4: Revisión : | H4: Página 1de 1
A7: Fecha: | C7: 2016-06-27 | F7: No. de Transferencia: | G7: UTC/SV/DEC/037/2016
A9: Nombre de la Unidad Responsable: | F9: SECRETARÍA DE VINCULACIÓN
A11: Monto Total Solicitado: | F11: 750
A13: DESCRIPCIÓN DE LA APLICACIÓN SOLICITADA.
A15: Origen de los recursos:
A16: REF. | B16: PROCESO | C16: PARTIDA | D16: MES | E16: FINANCIAMIENTO | F16: NOMBRE DE LA PARTIDA PRESUPUESTAL | H16: IMPORTE
A17: 1 | B17: PP-VIN-EDU-CONT-2016 | C17: 3341 | D17: JUN | E17: PRODUCTIVO | F17: SERVICIOS DE CAPACITACIÓN | H17: 750
F28: SUMA TOTAL A TRANSFERIR | H28: =SUM(H17:H27) -> 750
A30: Destino de recursos:
A31: REF. | B31: PROCESO | C31: PARTIDA | D31: MES | E31: RECURSO | F31: NOMBRE DE LA PARTIDA PRESUPUESTAL | H31: IMPORTE
A32: 1 | B32: PP-VIN-EDU-CONT-2016 | C32: 3821 | D32: JUN | E32: PRODUCTIVO | F32: GASTOS DE ORDEN SOCIAL Y CULTURAL | H32: 750
F44: SUMA TOTAL A TRANSFERIR | H44: =SUM(H32:H43) -> 750
A46: JUSTIFICACIÓN: PARA DAR SUFICIENCIA A LA SOLICITUD DV/DEC/157/2016 Y DV/DEC/159/2016. (PAGO SERVICIO DE APOYO INSTALACIONES)
A49: REQUISITOS: La información solicitada en este formato deberá presentarse en forma completa atendiendo a lo requerido en cada uno de los recuadros señalados. Se deben incluir los anexos.

Sheet 038 GLA (hidden)
C2: POA 2016 TRANSFERENCIA DE RECURSOS | G2: Procedimiento
G3: Código : CPR-P01-F04
G4: Revisión : | H4: Página 1de 1
A7: Fecha: | C7: 2016-06-30 | F7: No. de Transferencia: | G7: UTC/SV/DEC/038/2016
A9: Nombre de la Unidad Responsable: | F9: SECRETARÍA DE VINCULACIÓN
A11: Monto Total Solicitado: | F11: 1500
A13: DESCRIPCIÓN DE LA APLICACIÓN SOLICITADA.
A15: Origen de los recursos:
A16: REF. | B16: PROCESO | C16: PARTIDA | D16: MES | E16: FINANCIAMIENTO | F16: NOMBRE DE LA PARTIDA PRESUPUESTAL | H16: IMPORTE
A17: 1 | B17: PP-VIN-EDU-CONT-2016 | C17: 2214 | D17: JUL | E17: PRODUCTIVO | F17: ALIMENTACION DE PNAS POR EL DESARROLLO DE OTROS PROG | H17: 1500
F28: SUMA TOTAL A TRANSFERIR | H28: =SUM(H17:H27) -> 1500
A30: Destino de recursos:
A31: REF. | B31: PROCESO | C31: PARTIDA | D31: MES | E31: RECURSO | F31: NOMBRE DE LA PARTIDA PRESUPUESTAL | H31: IMPORTE
A32: 1 | B32: PP-VIN-EDU-CONT-2016 | C32: 2941 | D32: JUN | E32: PRODUCTIVO | F32: REFACCIONES Y ACCESORIOS MENORES DE EQP DE COMPUTO | H32: 1500
F44: SUMA TOTAL A TRANSFERIR | H44: =SUM(H32:H43) -> 1500
A46: JUSTIFICACIÓN: PARA DAR SUFICIENCIA A LA SOLICITUD DV/DEC/168/2016 (COMPRA DE MODEM EDUCACIÓN CONTINUA)
A49: REQUISITOS: La información solicitada en este formato deberá presentarse en forma completa atendiendo a lo requerido en cada uno de los recuadros señalados. Se deben incluir los anexos.

Sheet 039 (hidden)
C2: POA 2016 TRANSFERENCIA DE RECURSOS | G2: Procedimiento
G3: Código : CPR-P01-F04
G4: Revisión : | H4: Página 1de 1
A7: Fecha: | C7: 2016-07-01 | F7: No. de Transferencia: | G7: UTC/SV/DEC/039/2016
A9: Nombre de la Unidad Responsable: | F9: SECRETARÍA DE VINCULACIÓN
A11: Monto Total Solicitado: | F11: 5556.4
A13: DESCRIPCIÓN DE LA APLICACIÓN SOLICITADA.
A15: Origen de los recursos:
A16: REF. | B16: PROCESO | C16: PARTIDA | D16: MES | E16: FINANCIAMIENTO | F16: NOMBRE DE LA PARTIDA PRESUPUESTAL | H16: IMPORTE
A17: 1 | B17: IP-VIN -MEXPROTEC-16 | C17: 3711 | D17: MAYO | E17: PROPIOS | F17: PASAJES AEREOS NACIONALES | H17: 5556.4
F28: SUMA TOTAL A TRANSFERIR | H28: =SUM(H17:H27) -> 5556.4
A30: Destino de recursos:
A31: REF. | B31: PROCESO | C31: PARTIDA | D31: MES | E31: RECURSO | F31: NOMBRE DE LA PARTIDA PRESUPUESTAL | H31: IMPORTE
A32: 1 | B32: IP-VIN-MEXPROTEC-16 | C32: 3712 | D32: JUNIO | E32: PROPIOS | F32: PASAJES AEREOS INTERNACIONALES | H32: 5556.4
F44: SUMA TOTAL A TRANSFERIR | H44: =SUM(H32:H43) -> 5556.4
A46: JUSTIFICACIÓN: PARA DAR SUFICIENCIA A LA SOLICITUD DV/DEC/167/16.(BOLETO DE AVION CANCUN-ONTARIO-CANCUN A NOMBRE DE LA MAESTRA DIANA MORALES PECH POR BECA DEL PROGRAMA DE FORMACIÓN DE PROFESORES DE UNIVERSIDADES TECNOLÓGICAS 2016).
A49: REQUISITOS: La información solicitada en este formato deberá presentarse en forma completa atendiendo a lo requerido en cada uno de los recuadros señalados. Se deben incluir los anexos.

Sheet 040 (hidden)
C2: POA 2016 TRANSFERENCIA DE RECURSOS | G2: Procedimiento
G3: Código : CPR-P01-F04
G4: Revisión : | H4: Página 1de 1
A7: Fecha: | C7: 2016-07-01 | F7: No. de Transferencia: | G7: UTC/SV/DEC/040/2016
A9: Nombre de la Unidad Responsable: | F9: SECRETARÍA DE VINCULACIÓN
A11: Monto Total Solicitado: | F11: 800
A13: DESCRIPCIÓN DE LA APLICACIÓN SOLICITADA.
A15: Origen de los recursos:
A16: REF. | B16: PROCESO | C16: PARTIDA | D16: MES | E16: FINANCIAMIENTO | F16: NOMBRE DE LA PARTIDA PRESUPUESTAL | H16: IMPORTE
A17: 1 | B17: PP-VIN-INTERN-16 | C17: 3761 | D17: MAR. | E17: PRODUCTIVO | F17: VIÁTICOS EN EL EXTRANJERO | H17: 800
F28: SUMA TOTAL A TRANSFERIR | H28: =SUM(H17:H27) -> 800
A30: Destino de recursos:
A31: REF. | B31: PROCESO | C31: PARTIDA | D31: MES | E31: RECURSO | F31: NOMBRE DE LA PARTIDA PRESUPUESTAL | H31: IMPORTE
A32: 1 | B32: PP-VIN-INTERN-16 | C32: 3181 | D32: JULIO | E32: PRODUCTIVO | F32: SERVICIOS POSTALES Y TELEGRÁFICOS | H32: 800
F44: SUMA TOTAL A TRANSFERIR | H44: =SUM(H32:H43) -> 800
A46: JUSTIFICACIÓN: PARA DAR SUFICIENCIA A LA SOLICITUD DV/DEC/169/16.(ENVÍO INTERNACIONAL, CONVENIO A LIC. VERÓNICA LUNA FACULTAD DE CIENCIAS, LA PLATA, ARGENTINA)
A49: REQUISITOS: La información solicitada en este formato deberá presentarse en forma completa atendiendo a lo requerido en cada uno de los recuadros señalados. Se deben incluir los anexos.

Sheet 041 (hidden)
C2: POA 2016 TRANSFERENCIA DE RECURSOS | G2: Procedimiento
G3: Código : CPR-P01-F04
G4: Revisión : | H4: Página 1de 1
A7: Fecha: | C7: 2016-07-06 | F7: No. de Transferencia: | G7: UTC/SV/DEC/041/2016
A9: Nombre de la Unidad Responsable: | F9: SECRETARÍA DE VINCULACIÓN
A11: Monto Total Solicitado: | F11: 800
A13: DESCRIPCIÓN DE LA APLICACIÓN SOLICITADA.
A15: Origen de los recursos:
A16: REF. | B16: PROCESO | C16: PARTIDA | D16: MES | E16: FINANCIAMIENTO | F16: NOMBRE DE LA PARTIDA PRESUPUESTAL | H16: IMPORTE
A17: 1 | B17: IP-VIN-MOV-INT-16 | C17: 3821 | D17: AGO. | E17: PRODUCTIVO | F17: GASTOS DE ÓRDEN SOCIAL Y CULTURAL | H17: 800
F28: SUMA TOTAL A TRANSFERIR | H28: =SUM(H17:H27) -> 800
A30: Destino de recursos:
A31: REF. | B31: PROCESO | C31: PARTIDA | D31: MES | E31: RECURSO | F31: NOMBRE DE LA PARTIDA PRESUPUESTAL | H31: IMPORTE
A32: 1 | B32: IP-VIN-MOV-INT-16 | C32: 3181 | D32: JULIO | E32: PRODUCTIVO | F32: SERVICIOS POSTALES Y TELEGRÁFICOS | H32: 800
F44: SUMA TOTAL A TRANSFERIR | H44: =SUM(H32:H43) -> 800
A46: JUSTIFICACIÓN: PARA DAR SUFICIENCIA A LA SOLICITUD DV/DEC/171/16.(ENVÍO INTERNACIONAL,EXPEDIENTE DE ALUMNA DE INTERCAMBIO A LIC. ROMINA GONZÁLEZ )
A49: REQUISITOS: La información solicitada en este formato deberá presentarse en forma completa atendiendo a lo requerido en cada uno de los recuadros señalados. Se deben incluir los anexos.

Sheet TRANSFERENCIA
C1: TRANSFERENCIA DE RECURSOS | G1: Procedimiento
G2: Código : CPR-P01-F02
G5: Version : 9 | H5: Página 1 de 1
G6: 2023-06-06
A7: Fecha: | F7: No. de Transferencia:
A9: Nombre de la Unidad Responsable: | F9: DESPACHO DE LA RECTORÍA
A11: Monto Total Solicitado: | F11: =SUM(H25) -> 0
A13: DESCRIPCIÓN DE LA APLICACIÓN SOLICITADA.
A15: Origen de los recursos:
A16: REF. | B16: COMPONENTE Y/O PROYECTO | C16: PARTIDA/NOMBRE | F16: MES | G16: FINANCIAMIENTO | H16: IMPORTE
A17: 1
C25: TOTAL A TRANSFERIR | H25: =SUM(H17:H24) -> 0
A26: Destino de recursos:
A27: REF. | B27: COMPONENTE Y/O PROYECTO | C27: PARTIDA/NOMBRE | F27: MES | G27: FINANCIAMIENTO | H27: IMPORTE
C36: TOTAL A TRANSFERIR | H36: =SUM(H28:H35) -> 0
A38: JUSTIFICACIÓN:
A43: REQUISITOS: La información solicitada en este formato deberá presentarse en forma completa atendiendo a lo requerido en cada uno de los recuadros señalados. Se deben incluir los anexos.
A45: SOLICITÓ
A54: UNIDAD RESPONSABLE
A57: FECHA DE REVISIÓN: 06/JUNIO/2023 | F57: NUM. REVISIÓN: 9 | H57: CPR-P01-F02
A63: 11101 - DIETAS DE LEGISLADORES ESTATALES | C63: ENERO | F63: FEDERAL | G63: 1
F64: ESTATAL | G64: 2
A65: 11301 - SUELDOS BASE AL PERSONAL DE CONFIANZA | C65: FEBRERO | F65: INGRESOS PROPIOS | G65: 3
A66: 11302 - SUELDOS AL PERSONAL DE BASE | C66: MARZO | F66: SAULT COLLEGE | G66: 4
A67: 11303 - VIDA CARA | C67: ABRIL | G67: 5
A68: 12101 - HONORARIOS ASIMILABLES A SALARIOS | C68: MAYO | G68: 6
A69: 12201 - SUELDO BASE AL PERSONAL EVENTUAL | C69: JUNIO | G69: 7
A70: 12301 - RETRIBUCIONES POR SERVICIOS DE CARÁCTER SOCIAL | C70: JULIO | G70: 8
A71: 13101 - PRIMA QUINQUENAL | C71: AGOSTO | G71: 9
A72: 13102 - PRIMA DE ANTIGÜEDAD | C72: SEPTIEMBRE | G72: 10
A73: 13103 - ESTÍMULO POR AÑOS DE SERVICIO | C73: OCTUBRE | G73: 11
A74: 13201 - PRESTACIONES DE FIN DE AÑO EN EFECTIVO | C74: NOVIEMBRE | G74: 12
A75: 13202 - PRIMA VACACIONAL | C75: DICIEMBRE | G75: 13
A76: 13203 - PRIMA DOMINICAL | G76: 14
A77: 13204 - PRESTACIONES DE FIN DE AÑO EN ESPECIE | G77: 15
A78: 13301 - HORAS EXTRAORDINARIAS | G78: 16
A79: 13401 - COMPENSACIÓN POR SERVICIOS AL PERSONAL DE BASE | G79: 17
A80: 13402 - COMPENSACIÓN POR SERVICIOS AL PERSONAL DE CONFIANZA | G80: 18
A81: 13403 - COMPENSACIÓN POR SERVICIOS EVENTUALES | G81: 19
A82: 13404 - COMPENSACIÓN POR TRABAJOS ESPECIALES | G82: 20
A83: 14101 - APORTACIONES AL ISSSTE
A84: 14102 - APORTACIONES AL IMSS
A85: 14104 - CUOTAS PARA ESTANCIAS INFANTILES
A86: 14201 - CUOTAS AL FOVISSSTE
A87: 14202 - CUOTAS AL INFONAVIT
A88: 14301 - SISTEMA DE AHORRA PARA EL RETIRO
A89: 14302 - APORTACIONES ADICIONALES POR CONCEPTO DE AHORRO SOLIDARIO
A90: 14401 - CUOTAS PARA EL SEGURO DE VIDA DEL PERSONAL
A91: 14402 - GASTOS MÉDICOS MAYORES
A92: 14403 - APORTACIONES PARA OTROS SEGUROS
A93: 15101 - CUOTAS PARA EL FONDO DE AHORRO Y FONDO DE TRABAJO
A94: 15201 - INDEMIZACIONES
A95: 15301 - PRESTACIONES Y HABERES DE RETIRO
A96: 15401 - CANASTA BÁSICA, AYUDA PARA DESPENSA
A97: 15402 - AYUDA PARA RENTA Y APOYO DE VIVIENDA
A98: 15403 - AYUDA PARA TRANSPORTE
A99: 15404 - ONOMÁSTICO, DÍA DEL PADRE Y MADRE
A100: 15405 - PRESTACIONES CONTRACTUALES EN EFECTIVO
A101: 15406 - CELEBRACIÓN ACORDE A LA PROFESIÓN
A102: 15407 - BECAS Y PRESTACIONES RELATIVAS A LOS HIJOS DE TRABAJADORES EN ESPECIE
A103: 15408 - PRESTACIONES POR CONCEPTOS DE SALUD
A104: 15409 - OTRAS PRESTACIONES DE CARÁCTER GENERAL A LOS TRABAJADORES
A105: 15501 - APOYO ESCOLAR
A106: 15502 - APOYOS POR ESPECIALIZACIÓN Y CAPACITACIÓN DEL PERSONAL
A107: 15901 - DÍAS ECONÓMICOS
A108: 15902 - PAGOS POR DEFUNCIÓN
A109: 15903 - OTRAS PRESTACIONES ECONÓMICAS Y SOCIALES
A110: 16101 - PREVISIONES POR CRECIMIENTO EN PLAZAS
A111: 16102 - PREVISIONES POR INCREMENTOS AL SALARIO
A112: 16103 - OTRAS MEDIDAS DE CARÁCTER SALARIAL
A113: 17101 - ESTÍMULOS POR PRODUCTIVIDAD
A114: 17102 - ESTÍMULOS POR PUNTUALIDAD Y ASISTENCIA MENSUAL
A115: 21101 - CONSUMIBLES DE OFICINA
A116: 21102 - ÚTILES, ARTÍCULOS Y HERRAMIENTAS MENORES DE OFICINA
A117: 21103 - PAPELERÍA
A118: 21201 - MATERIALES Y ÚTILES DE IMPRESIÓN Y REPRODUCCIÓN
A119: 21301 - MATERIAL ESTADÍSTICO Y GEOGRÁFICO
A120: 21401 - MATERIAL DE LIMPIEZA Y MANTENIMIENTO E INSUMOS PARA EQUIPOS DE TECNOLOGÍA DE LA INFORMACIÓN Y COMUNICACIONES
A121: 21402 - ÚTILES Y EQUIPOS MENORES DE TECNOLOGÍA DE LA INFORMACIÓN Y COMUNICACIONES
A122: 21501 - PUBLICACIONES IMPRESAS
A123: 21502 - MATERIAL DE DIFUSIÓN EN MEDIO DIGITAL
A124: 21601 - MATERIAL DE LIMPIEZA
A125: 21701 - MATERIAL Y ÚTILES DE ENSEÑANZA
A126: 21801 - FORMAS VALORADAS Y PAPELERÍA OFICIAL
A127: 21803 - OTROS MATERIALES PARA EL REGISTRO E IDENTIFICACIÓN DE BIENES Y PERSONAS
A128: 22101 - ALIMENTOS PARA EL PERSONAL INSTITUCIONAL
A129: 22102 - ALIMENTACIÓN A PERSONAS EN ATENCIÓN HOSPITALARIA O DE SEGURIDAD SOCIAL
A130: 22103 - ALIMENTACIÓN DE PERSONAS CAUTIVAS O EN PROCESO DE READAPTACIÓN SOCIAL
A131: 22104 - ALIMENTACIÓN DE PERSONAS POR EL DESARROLLO DE OTROS PROGRAMAS INSTITUCIONALES
A132: 22201 - PRODUCTOS ALIMENTICIOS PARA ANIMALES
A133: 22301 - UTENSILIOS, MATERIALES Y EQUIPOS MENORES PARA EL SERVICIO DE ALIMENTACIÓN DE PERSONAS
A134: 23101 - PRODUCTOS ALIMENTICIOS, AGROPECUARIOS Y FORESTALES ADQUIRIDOS COMO MATERIA PRIMA
A135: 23201 - INSUMOS TEXTILES ADQUIRIDOS COMO MATERIA PRIMA
A136: 23301 - PRODUCTOS DE PAPEL, CARTÓN E IMPRESOS ADQUIRIDOS COMO MATERIA PRIMA
A137: 23401 - COMBUSTIBLES, ADITIVOS, CARBÓN Y SUS DERIVADOS ADQUIRIDOS COMO MATERIA PRIMA
A138: 23501 - PRODUCTOS QUÍMICOS, FARMACÉUTICOS Y DE LABORATORIO ADQUIRIDOS COMO MATERIA PRIMA
A139: 23601 - PRODUCTOS METALICOS Y A BASE DE MINERALES NO METALICOS ADQUIRIDOS COMO MATERIA PRIMA
A140: 23701 - PRODUCTOS DE CUERO, PIEL, PLÁSTICO Y HULE ADQUIRIDOS COMO MATERIA PRIMA
A141: 23901 - OTROS PRODUCTOS ADQUIRIDOS COMO MATERIA PRIMA
A142: 24101 - PRODUCTOS MINERALES NO METÁLICOS
A143: 24201 - CEMENTO Y PRODUCTOS DE CONCRETO
A144: 24301 - CAL, YESO Y PRODUCTOS DE YESO
A145: 24401 - MADERA Y SUS DERIVADOS EMPLEADOS PARA LA CONSTRUCCIÓN Y REPARACIÓN DE INMUEBLES
A146: 24501 - VIDRIO Y PRODUCTOS DE VIDRIO
A147: 24601 - MATERIAL ELÉCTRICO Y ELECTRÓNICO
A148: 24701 - ARTÍCULOS METÁLICOS PARA LA CONSTRUCCIÓN
A149: 24801 - MATERIALES COMPLEMENTARIOS
A150: 24901 - OTROS MATERIALES Y ARTÍCULOS DE CONSTRUCCIÓN Y REPARACIÓN
A151: 24902 - ARTÍCULOS PLÁSTICOS PARA LA CONSTRUCCIÓN
A152: 25101 - PRODUCTOS QUÍMICOS BÁSICOS
A153: 25201 - FERTILIZANTES, PESTICIDAS Y OTROS AGROQUÍMICOS
A154: 25301 - MEDICINAS Y PRODUCTOS FARMACÉUTICOS DE USO HUMANO
A155: 25302 - MEDICINAS Y PRODUCTOS FARMACÉUTICOS DE USO VETERINARIO
A156: 25401 - MATERIALES Y SUMINISTROS MÉDICOS
A157: 25402 - INSTRUMENTOS MÉDICOS MENORES
A158: 25501 - MATERIALES, SUMINISTROS E INSTRUMENTOS MENORES DE LABORATORIO
A159: 25601 - FIBRAS SINTÉTICAS, HULES, PLÁSTICOS Y DERIVADOS
A160: 25901 - OTROS PRODUCTOS QUÍMICOS
A161: 26101 - COMBUSTIBLE
A162: 26102 - LUBRICANTES Y ADITIVOS
A163: 27101 - VESTUARIOS Y UNIFORMES
A164: 27201 - PRENDAS DE SEGURIDAD Y PROTECCIÓN PERSONAL
A165: 27301 - ARTÍCULOS DEPORTIVOS
A166: 27401 - PRODUCTOS TEXTILES
A167: 27501 - BLANCOS Y OTROS PRODUCTOS TEXTILES, EXCEPTO PRENDAS DE VESTIR
A168: 28201 - MATERIALES DE SEGURIDAD PÚBLICA
A169: 28301 - PRENDAS DE PROTECCIÓN PARA SEGURIDAD PÚBLICA
A170: 29101 - HERRAMIENTAS MENORES
A171: 29201 - REFACCIONES Y ACCESORIOS MENORES DE EDIFICIOS
A172: 29301 - REFACCIONES Y ACCESORIOS MENORES DE MOBILIARIO Y EQUIPO DE ADMINISTRACIÓN, EDUCACIONAL Y RECREATIVO
A173: 29401 - REFACCIONES Y ACCESORIOS MENORES DE EQUIPO DE CÓMPUTO Y TECNOLOGÍAS DE LA INFORMACIÓN
A174: 29501 - REFACCIONES Y ACCESORIOS MENORES DE INSTRUMENTAL MÉDICO Y DE LABORATORIO
A175: 29601 - REFACCIONES Y ACCESORIOS MENORES DE EQUIPO DE TRANSPORTE
A176: 29701 - REFACCIONES Y ACCESORIOS MENORES DE EQUIPO DE DEFENSA Y SEGURIDAD
A177: 29801 - REFACCIONES Y ACCESORIOS MENORES DE MAQUINARIA Y OTROS EQUIPOS
A178: 29901 - OTRAS REFACCIONES Y ACCESORIOS MENORES
A179: 29902 - OTRAS REFACCIONES Y ACCESORIOS CONTINGENTES
A180: 31101 - ENERGÍA ELÉCTRICA
A181: 31201 - GAS
A182: 31301 - AGUA
A183: 31401 - TELEFONÍA TRADICIONAL
A184: 31501 - TELEFONÍA CELULAR
A185: 31601 - SERVICIO DE TELECOMUNICACIÓN Y SATÉLITES
A186: 31701 - SERVICIO DE INTERNET Y REDES
A187: 31702 - SERVICIO DE PROCESAMIENTO DE INFORMACIÓN
A188: 31801 - SERVICIOS POSTALES Y TELEGRÁFICOS
A189: 31901 - SERVICIOS INTEGRALES Y OTROS SERVICIOS
A190: 32101 - ARRENDAMIENTO DE TERRENOS
A191: 32201 - ARRENDAMIENTO DE EDIFICIOS
A192: 32301 - ARRENDAMIENTO DE MOBILIARIO Y EQUIPO DE ADMINISTRACIÓN, EDUCACIONAL Y RECREATIVO
A193: 32302 - ARRENDAMIENTO DE EQUIPOS Y BIENES DE TECNOLOGÍA DE LA INFORMACIÓN
A194: 32401 - ARRENDAMIENTO DE EQUIPO E INSTRUMENTAL MÉDICO Y DE LABORATORIO
A195: 32501 - ARRENDAMIENTO DE EQUIPO DE TRANSPORTE
A196: 32601 - ARRENDAMIENTO DE MAQUINARIA, OTROS EQUIPOS Y HERRAMIENTAS
A197: 32701 - ARRENDAMIENTO DE MARCAS Y PATENTES
A198: 32702 - ARRENDAMIENTO DE LICENCIAS DE PROGRAMAS DE CÓMPUTO
A199: 32801 - ARRENDAMIENTO FINANCIERO
A200: 32901 - OTROS ARRENDAMIENTOS
A201: 32902 - ARRENDAMIENTO DE EQUIPO Y BIENES DE TECNOLOGÍA DE LA INFORMACIÓN
A202: 33101 - SERVICIOS LEGALES, DE CONTABILIDAD, AUDITORÍA Y RELACIONADOS
A203: 33201 - SERVICIOS DE DISEÑO, ARQUITECTURA, INGENIERÍA Y ACTIVIDADES RELACIONADAS
A204: 33301 - SERVICIOS DE CONSULTORÍA ADMINISTRATIVA, PROCESOS, TÉCNICA Y EN TECNOLOGÍAS DE LA INFORMACIÓN
A205: 33401 - SERVICIOS DE CAPACITACIÓN
A206: 33501 - SERVICIOS DE INVESTIGACIÓN CIENTÍFICA Y DESARROLLO
A207: 33601 - SERVICIOS DE APOYO ADMINISTRATIVO Y SECRETARIAL
A208: 33602 - SERVICIOS EXTERNOS DE TRADUCCION Y TRANSCRIPCIÓN
A209: 33603 - SERVICIOS DE ELABORACIÓN E IMPRESIÓN DE DOCUMENTOS
A210: 33701 - SERVICIOS DE PROTECCIÓN Y SEGURIDAD
A211: 33801 - SERVICIOS DE VIGILANCIA
A212: 33901 - SERVICIOS PROFESIONALES, CIENTÍFICOS Y TÉCNICOS INTEGRALES
A213: 34101 - SERVICIOS FINANCIEROS Y BANCARIOS
A214: 34201 - SERVICIOS DE COBRANZA, INVESTIGACIÓN CREDITICIA Y SIMILAR
A215: 34301 - SERVICIOS DE RECAUDACIÓN, TRASLADO Y CUSTODIA DE VALORES
A216: 34401 - SEGUROS DE RESPONSABILIDAD PATRIMONIAL Y FIANZAS
A217: 34501 - SEGURO DE BIENES PATRIMONIALES
A218: 34601 - ALMACENAJE, EMABALAJE Y ENVASE
A219: 34701 - FLETES Y MANIOBRAS
A220: 34801 - COMISIONES POR VENTAS
A221: 34901 - OTROS SERVICIOS FINANCIEROS Y BANCARIOS
A222: 34902 - OTROS SERVICIOS COMERCIALES INTEGRALES
A223: 35101 - CONSERVACIÓN Y MANTENIMIENTO MENOR DE INMUEBLES
A224: 35201 - INSTALACIÓN, REPARACIÓN Y MANTENIMIENTO DE MOBILIARIO Y EQUIPO DE ADMINISTRACIÓN, EDUCACIONAL Y RECREATIVO
A225: 35301 - INSTALACIÓN, REPARACIÓN Y MANTENIMIENTO DE EQUIPO DE COMPUTO Y TECNOLOGÍA DE LA INFORMACIÓN
A226: 35401 - INSTALACIÓN, REPARACIÓN Y MANTENIMIENTO DE EQUIPO E INSTRUMENTAL MÉDICO Y DE LABORATORIO
A227: 35501 - REPARACIÓN Y MANTENIMIENTO DE EQUIPO DE TRANSPORTE
A228: 35601 - REPARACIÓN Y MANTENIMIENTO DE EQUIPO DE DEFENSA Y SEGURIDAD
A229: 35701 - INSTALACIÓN, REPARACIÓN Y MANTENIMIENTO DE MAQUINARIA, OTROS EQUIPOS Y HERRAMIENTAS
A230: 35801 - SERVICIOS DE LIMPIEZA Y MANEJO DE DESECHOS
A231: 35901 - SERVICIOS DE JARDINERÍA Y FUMIGACIÓN
A232: 36101 - DIFUSIÓN POR RADIO, TELEVISIÓN Y OTROS MEDIOS DE MENSAJES SOBRE PROGRAMAS Y ACTIVIDADES GUBERNAMENTALES
A233: 36102 - ESTUDIOS DE EVALUACIÓN Y DIFUSIÓN SOBRE PROGRAMAS Y CAMPAÑAS GUBERNAMENTALES
A234: 36103 - DIFUSIÓN DE PROGRAMAS Y ACTIVIDADES GUBERNAMENTALES EN PUBLICACIONES IMPRESAS
A235: 36104 - DIFUSIÓN DE PROGRAMAS Y ACTIVIDADES GUBERNAMENTALES A TRAVÉS DE OTROS MEDIOS DE COMUNICACIÓN
A236: 36201 - SERVICIOS DE DIFUSIÓN PARA LA COMERCIALIZACIÓN DE BIENES O SERVICIOS
A237: 36202 - ARTÍCULOS PROMOCIONALES
A238: 36203 - ESTUDIOS Y EVALUACIÓN DE CAMPAÑAS COMERCIALES
A239: 36301 - SERVICIOS DE CREATIVIDAD, PREPRODUCCIÓN Y PRODUCCIÓN DE PUBLICIDAD, EXCEPTO INTERNET
A240: 36401 - SERVICIOS DE REVELADO O IMPRESIÓN DE FOTOGRAFÍAS
A241: 36501 - SERVICIOS PARA LA INDUSTRIA FÍLMICA, DEL SONIDO Y DEL VIDEO
A242: 36601 - SERVICIO DE CREACIÓN Y DIFUSIÓN DE CONTENIDO EXCLUSIVAMENTE A TRAVÉS DE INTERNET
... 140 more rows
